{"text_format":"1","workbook":"xlsx","n_sheets":1,"sheets":["Sheet1"],"not_rendered":{"charts":0,"images":1,"macros":1,"external_links":0,"defined_names":1,"comments":0,"pivot_tables":0},"unopened":[],"bounds":{"document_bytes":16777216,"sheet_cells":100000,"rows_first":2000,"rows_last":500,"rows_between":2000,"halvings":0,"cell_chars":16384,"cell_head_chars":4096},"cells_cut":0,"cells_raw":0,"read":"whole","date_system":"1900"}

{"sheet":"Sheet1","index":0,"n_rows":353,"n_cols":198,"rows_kept":353,"cut":false,"hidden":false,"merged":[[273,189,273,192],[249,6,250,11],[249,107,250,112],[265,34,266,73],[265,74,266,79],[265,80,266,91],[267,34,268,73],[267,74,268,79],[267,80,268,91],[269,74,270,79],[269,80,270,87],[269,88,270,91],[271,65,272,69],[3,40,5,41],[3,42,5,58],[1,42,2,58],[1,6,2,41],[121,6,122,41],[121,42,122,58],[123,6,125,7],[123,8,125,9],[123,10,125,11],[123,12,125,13],[123,14,125,15],[123,16,125,17],[123,18,125,19],[123,20,125,21],[123,22,125,23],[123,24,125,25],[123,26,125,27],[123,28,125,29],[123,30,125,31],[352,6,353,19],[352,20,353,43],[352,44,353,62],[352,92,353,96],[278,127,280,147],[278,148,280,164],[294,96,297,97],[324,86,333,97],[313,51,315,85],[319,51,321,85],[325,51,327,85],[331,51,333,85],[313,42,315,43],[313,44,315,45],[312,11,312,21],[313,11,315,21],[313,22,315,23],[334,34,339,37],[50,112,53,196],[54,112,56,196],[57,112,59,196],[70,112,70,196],[71,80,74,88],[154,88,155,91],[211,80,213,81],[211,82,212,85],[260,79,261,80],[260,81,261,95],[260,96,261,97],[273,74,273,79],[109,20,114,97],[126,113,127,120],[271,70,272,73],[271,80,272,83],[271,84,272,87],[271,88,272,91],[273,65,273,69],[273,70,273,73],[273,80,273,83],[273,84,273,87],[157,26,158,46],[273,34,273,38],[273,39,273,42],[273,43,273,46],[273,47,273,51],[273,52,273,55],[273,56,273,60],[273,61,273,64],[273,88,273,91],[250,71,251,97],[306,190,306,198],[304,89,305,97],[307,71,309,79],[307,89,309,97],[304,172,305,180],[307,172,309,180],[304,190,305,198],[307,190,309,198],[274,64,275,80],[274,81,275,97],[298,70,301,79],[298,80,301,95],[156,70,156,73],[156,80,156,83],[156,84,156,87],[156,88,156,91],[123,32,125,33],[123,34,125,35],[123,36,125,37],[123,38,125,39],[123,40,125,41],[123,42,125,58],[266,20,267,33],[260,60,261,78],[232,74,234,97],[223,83,223,87],[223,88,223,92],[223,93,223,97],[217,46,223,49],[220,67,222,82],[201,22,201,39],[278,165,280,181],[312,82,312,85],[217,135,222,138],[217,139,222,142],[217,147,223,150],[220,168,222,183],[223,168,223,183],[187,190,188,198],[190,190,192,198],[196,181,198,182],[196,183,198,184],[196,185,198,186],[196,187,206,198],[196,152,198,162],[196,163,198,164],[196,165,198,166],[196,167,198,168],[196,169,198,170],[196,171,198,172],[196,173,198,174],[196,175,198,176],[196,177,198,178],[199,152,200,162],[238,107,242,198],[302,141,306,142],[302,143,306,146],[302,164,305,171],[306,164,309,171],[302,172,303,180],[306,172,306,180],[302,181,305,189],[306,181,309,189],[302,190,303,198],[223,67,223,82],[190,71,192,79],[190,89,192,97],[189,63,192,70],[238,6,242,97],[294,70,297,79],[294,80,297,95],[274,165,275,181],[274,182,275,198],[276,107,277,126],[276,127,277,130],[276,131,277,145],[276,146,277,147],[276,148,277,164],[276,165,277,181],[276,182,277,198],[278,107,280,126],[185,6,192,10],[195,22,195,39],[185,89,186,97],[187,71,188,79],[189,71,189,79],[188,11,189,21],[188,22,189,39],[185,40,189,41],[278,182,280,198],[276,81,277,97],[278,6,280,25],[274,107,275,126],[274,127,275,147],[274,148,275,164],[260,39,261,40],[235,6,236,97],[248,59,249,68],[248,69,249,97],[250,59,255,62],[258,41,259,59],[305,11,306,21],[305,22,306,39],[302,40,306,41],[302,42,306,45],[302,63,305,70],[306,63,309,70],[302,71,303,79],[304,71,305,79],[302,80,305,88],[306,80,309,88],[302,89,303,97],[306,71,306,79],[306,89,306,97],[243,6,248,11],[252,6,255,11],[260,41,261,59],[217,34,222,37],[217,38,222,41],[291,70,293,79],[291,87,293,97],[283,6,289,97],[274,6,275,25],[274,26,275,46],[274,47,275,63],[276,6,277,25],[152,34,153,42],[152,43,153,55],[152,56,153,64],[156,20,156,33],[156,34,156,38],[156,39,156,42],[156,43,156,46],[154,65,155,69],[154,70,155,73],[154,80,155,83],[154,84,155,87],[185,80,188,88],[177,53,180,62],[260,6,264,21],[208,28,210,29],[202,11,204,21],[202,22,204,23],[196,44,198,45],[196,51,198,61],[196,62,198,63],[208,22,210,23],[208,24,210,25],[185,46,192,52],[3,112,7,196],[16,112,19,196],[83,113,83,188],[76,112,77,179],[185,63,188,70],[185,164,188,171],[189,164,192,171],[185,172,186,180],[189,172,189,180],[187,172,188,180],[190,172,192,180],[185,181,188,189],[189,181,192,189],[185,190,186,198],[189,190,189,198],[59,70,62,79],[38,92,38,97],[55,63,58,69],[55,80,58,86],[90,82,92,83],[99,67,101,97],[83,82,83,85],[93,82,94,85],[156,92,156,97],[152,92,153,97],[189,89,189,97],[187,89,188,97],[90,84,92,85],[96,82,98,83],[41,81,42,97],[43,81,45,97],[41,64,42,80],[157,47,158,63],[105,88,105,92],[105,56,105,58],[105,53,105,55],[105,83,105,87],[84,70,86,71],[8,90,10,91],[8,92,10,93],[59,53,62,62],[59,63,62,69],[55,87,55,97],[63,63,66,69],[166,6,172,97],[173,6,176,11],[132,6,133,11],[8,82,10,83],[56,87,58,97],[24,79,25,80],[24,96,25,97],[48,6,54,97],[56,19,58,28],[115,10,118,19],[39,6,40,25],[43,64,45,80],[41,47,42,63],[43,47,45,63],[41,45,42,46],[41,26,42,29],[41,30,42,44],[43,26,45,46],[41,6,42,25],[43,6,45,25],[99,6,104,9],[90,86,98,97],[87,80,89,81],[75,80,77,81],[95,82,95,85],[78,11,80,21],[14,71,15,97],[8,96,10,97],[8,94,10,95],[8,74,10,75],[8,76,10,77],[8,78,10,79],[102,88,104,92],[89,62,89,79],[8,88,10,89],[75,86,77,97],[78,86,88,97],[81,82,82,85],[87,82,88,85],[84,84,86,85],[77,82,77,85],[38,80,38,83],[34,88,35,91],[34,80,35,87],[30,80,31,91],[32,80,33,91],[30,74,31,79],[32,74,33,79],[34,74,35,79],[36,65,37,69],[36,70,37,73],[38,65,38,69],[115,67,118,73],[99,50,101,66],[90,26,92,27],[90,28,92,29],[90,30,92,31],[90,32,92,33],[90,11,92,21],[8,16,19,58],[8,84,10,85],[11,69,13,97],[102,93,104,97],[16,63,19,97],[20,79,23,97],[20,60,23,78],[30,92,31,97],[24,81,25,95],[20,6,23,21],[24,6,29,21],[38,43,38,46],[38,52,38,55],[38,74,38,79],[24,39,25,40],[59,12,62,18],[63,12,66,18],[59,19,62,28],[78,22,80,23],[33,20,34,33],[34,65,35,73],[24,22,25,25],[90,24,92,25],[102,83,104,87],[102,53,104,55],[102,67,104,82],[105,67,105,82],[56,53,58,62],[34,43,35,55],[38,20,38,33],[38,11,38,15],[38,16,38,19],[36,92,37,97],[38,47,38,51],[38,34,38,38],[89,82,89,85],[77,11,77,21],[38,39,38,42],[78,24,80,25],[83,11,83,21],[105,93,105,97],[59,29,62,35],[64,48,66,52],[72,40,74,41],[102,63,104,66],[38,70,38,73],[39,81,40,97],[39,64,40,80],[39,47,40,63],[39,26,40,46],[38,88,38,91],[36,88,37,91],[38,84,38,87],[36,84,37,87],[36,80,37,83],[334,38,339,41],[334,46,340,49],[337,67,339,82],[340,67,340,82],[312,22,312,39],[312,42,312,45],[312,51,312,61],[312,62,312,79],[276,30,277,44],[250,63,251,70],[98,2,118,5],[59,96,62,97],[63,19,63,28],[67,53,69,62],[60,36,62,42],[60,43,62,47],[60,48,62,52],[59,43,59,47],[59,48,59,52],[63,36,63,42],[63,43,63,47],[63,48,63,52],[64,36,66,42],[64,43,66,47],[64,19,66,28],[67,42,69,45],[75,42,76,45],[63,29,66,35],[72,30,74,31],[63,70,66,79],[59,6,66,11],[75,11,76,21],[105,38,105,41],[105,42,105,45],[99,14,104,17],[106,40,108,41],[106,42,108,43],[106,44,108,45],[95,11,95,21],[90,76,92,77],[105,10,105,13],[112,10,113,19],[115,20,118,66],[106,34,108,35],[105,59,105,62],[99,26,100,33],[102,50,104,52],[99,34,104,37],[99,38,104,41],[101,26,104,29],[101,30,104,33],[105,34,105,37],[87,9,92,10],[90,38,92,39],[90,34,92,35],[105,18,105,21],[99,18,104,21],[105,22,105,25],[102,56,104,58],[102,59,104,62],[87,11,88,21],[99,22,104,25],[99,46,105,49],[96,26,98,27],[96,11,98,21],[96,80,98,81],[84,24,86,25],[87,22,88,39],[90,40,92,41],[90,51,92,61],[78,62,80,63],[90,78,92,79],[87,42,88,45],[93,42,94,45],[96,84,98,85],[89,86,89,97],[72,22,74,23],[96,34,98,35],[96,36,98,37],[96,38,98,39],[84,38,86,39],[96,62,98,63],[90,62,92,63],[90,64,92,65],[90,66,92,67],[77,51,77,61],[89,22,89,39],[78,36,80,37],[84,68,86,69],[78,28,80,29],[72,32,74,33],[72,28,74,29],[84,30,86,31],[72,34,74,35],[90,36,92,37],[67,6,74,10],[84,11,86,21],[78,44,80,45],[84,42,86,43],[87,40,89,41],[75,62,76,79],[78,76,80,77],[72,24,74,25],[72,26,74,27],[72,42,74,43],[96,76,98,77],[96,78,98,79],[75,9,80,10],[81,9,86,10],[34,92,35,97],[14,63,15,70],[69,89,70,97],[84,32,86,33],[81,11,82,21],[78,26,80,27],[90,22,92,23],[90,70,92,71],[95,42,95,45],[90,68,92,69],[81,49,86,50],[81,51,82,61],[75,46,98,48],[95,51,95,61],[95,62,95,79],[77,62,77,79],[78,51,80,61],[93,9,98,10],[96,30,98,31],[96,44,98,45],[75,40,77,41],[90,42,92,43],[93,40,95,41],[84,51,86,61],[81,22,82,39],[75,22,76,39],[90,44,92,45],[89,42,89,45],[75,49,80,50],[75,51,76,61],[84,40,86,41],[77,42,77,45],[78,42,80,43],[84,64,86,65],[81,62,82,79],[96,72,98,73],[96,28,98,29],[72,38,74,39],[78,74,80,75],[84,36,86,37],[70,53,74,62],[78,84,80,85],[22,41,23,59],[20,22,23,40],[55,29,58,35],[84,28,86,29],[55,36,55,45],[24,26,25,38],[55,53,55,62],[55,70,55,79],[8,86,10,87],[32,92,33,97],[78,32,80,33],[71,89,71,97],[72,89,74,97],[67,71,68,79],[72,36,74,37],[8,80,10,81],[71,71,71,79],[72,71,74,79],[30,34,31,73],[32,34,33,73],[3,84,5,97],[90,80,92,81],[96,32,98,33],[46,16,47,97],[84,44,86,45],[89,11,89,21],[78,34,80,35],[1,59,2,83],[3,36,5,37],[3,38,5,39],[67,80,70,88],[6,12,7,19],[8,12,19,15],[13,6,14,11],[6,6,11,11],[16,6,19,11],[93,51,94,61],[89,51,89,61],[78,80,80,81],[78,82,80,83],[63,53,66,62],[81,80,83,81],[83,51,83,61],[84,62,86,63],[14,59,19,62],[6,59,7,69],[83,22,83,39],[78,38,80,39],[84,26,86,27],[67,63,70,70],[71,63,74,70],[69,71,70,79],[1,1,5,4],[36,47,37,51],[36,52,37,55],[36,56,37,60],[36,61,37,64],[36,74,37,79],[36,6,37,10],[36,34,37,38],[36,39,37,42],[36,16,37,19],[36,43,37,46],[38,6,38,10],[75,6,98,8],[56,70,58,79],[93,62,94,79],[96,40,98,41],[81,40,83,41],[78,64,80,65],[78,66,80,67],[78,68,80,69],[78,70,80,71],[78,72,80,73],[6,70,7,97],[84,22,86,23],[1,84,2,97],[96,42,98,43],[83,62,83,79],[96,68,98,69],[78,30,80,31],[75,82,76,85],[59,80,62,95],[63,80,66,95],[199,80,201,81],[199,82,200,85],[201,11,201,21],[195,62,195,79],[190,30,192,31],[190,32,192,33],[190,34,192,35],[190,36,192,37],[173,63,176,69],[173,70,173,79],[196,80,198,81],[181,43,181,47],[207,62,207,79],[207,82,207,85],[202,42,204,43],[202,44,204,45],[202,51,204,61],[202,62,204,63],[189,80,192,88],[185,42,189,45],[181,36,181,42],[181,48,181,52],[181,53,184,62],[181,63,184,69],[177,70,180,79],[177,80,180,95],[201,51,201,61],[202,32,204,33],[202,36,204,37],[196,11,198,21],[174,87,176,97],[173,80,176,86],[214,40,216,41],[214,42,216,43],[214,44,216,45],[220,56,222,58],[193,6,216,8],[193,9,198,10],[193,11,194,21],[193,22,194,39],[193,40,195,41],[193,42,194,45],[193,46,216,48],[177,12,180,18],[177,19,180,28],[177,29,180,35],[177,36,177,42],[177,43,177,47],[177,6,184,11],[177,48,177,52],[199,9,204,10],[199,11,200,21],[199,22,200,39],[199,40,201,41],[199,42,200,45],[199,49,204,50],[199,51,200,61],[188,53,192,62],[190,11,192,21],[190,22,192,23],[190,24,192,25],[190,26,192,27],[190,28,192,29],[208,26,210,27],[121,1,125,4],[121,59,122,83],[121,84,122,97],[123,59,125,83],[123,84,125,97],[93,22,94,39],[105,63,105,66],[87,51,88,61],[84,80,86,81],[84,82,86,83],[93,80,95,81],[95,22,95,39],[8,59,10,73],[11,59,13,68],[30,6,31,19],[105,6,105,9],[105,26,105,29],[105,30,105,33],[46,6,47,14],[78,78,80,79],[84,66,86,67],[67,46,74,52],[105,14,105,17],[59,36,59,42],[96,74,98,75],[106,10,108,19],[99,10,104,13],[77,22,77,39],[106,36,108,37],[70,11,71,21],[67,40,71,41],[70,42,71,45],[135,63,138,97],[128,82,130,83],[128,84,130,85],[128,86,130,87],[128,88,130,89],[128,90,130,91],[128,92,130,93],[128,94,130,95],[128,96,130,97],[126,6,131,11],[135,6,138,11],[6,20,7,58],[96,22,98,23],[96,24,98,25],[90,74,92,75],[96,64,98,65],[96,66,98,67],[81,42,82,45],[106,20,108,21],[106,22,108,23],[106,24,108,25],[106,26,108,27],[106,28,108,29],[106,30,108,31],[106,38,108,39],[84,72,86,73],[84,74,86,75],[84,76,86,77],[84,78,86,79],[87,49,92,50],[90,72,92,73],[67,22,69,39],[154,92,155,97],[154,20,155,33],[154,34,155,38],[154,39,155,42],[154,43,155,46],[154,47,155,51],[126,12,127,19],[126,59,127,69],[126,70,127,97],[128,12,138,15],[128,16,138,58],[128,59,130,73],[128,74,130,75],[128,76,130,77],[128,78,130,79],[128,80,130,81],[131,59,132,68],[131,69,132,97],[133,59,138,62],[133,63,134,70],[133,71,134,97],[126,20,127,58],[152,80,153,87],[152,88,153,91],[148,34,149,73],[148,74,149,79],[148,80,149,91],[150,34,151,73],[150,74,151,79],[150,80,151,91],[152,74,153,79],[152,16,153,19],[150,6,151,19],[139,22,142,40],[139,60,142,78],[139,79,142,97],[143,6,147,21],[143,22,144,25],[143,26,144,38],[143,39,144,40],[143,41,144,59],[143,60,144,78],[143,79,144,80],[143,81,144,95],[143,96,144,97],[145,22,147,40],[145,41,147,59],[145,60,147,78],[145,79,147,97],[150,92,151,97],[139,6,142,21],[148,6,149,19],[148,92,149,97],[149,20,150,33],[151,20,152,33],[152,65,153,73],[139,41,140,59],[141,41,142,59],[177,96,180,97],[156,6,156,10],[156,11,156,15],[156,16,156,19],[156,47,156,51],[156,52,156,55],[156,56,156,60],[156,61,156,64],[156,74,156,79],[173,36,173,45],[173,46,176,52],[173,53,173,62],[161,47,163,63],[156,65,156,69],[157,64,158,80],[157,81,158,97],[159,6,160,25],[159,26,160,29],[159,30,160,44],[159,45,160,46],[159,47,160,63],[159,64,160,80],[159,81,160,97],[161,6,163,25],[161,26,163,46],[157,6,158,25],[161,64,163,80],[161,81,163,97],[174,19,176,28],[174,36,176,45],[174,53,176,62],[174,70,176,79],[196,38,198,39],[196,40,198,41],[196,42,198,43],[181,70,184,79],[181,80,184,95],[182,19,184,28],[182,36,184,42],[182,43,184,47],[182,48,184,52],[185,11,187,21],[185,22,187,39],[196,84,198,85],[196,22,198,23],[196,24,198,25],[196,26,198,27],[195,51,195,61],[173,12,176,18],[173,19,173,28],[173,29,176,35],[196,28,198,29],[196,30,198,31],[185,53,187,62],[173,87,173,97],[193,86,195,97],[196,82,198,83],[154,61,155,64],[154,74,155,79],[154,6,155,10],[154,11,155,15],[193,80,195,81],[193,82,194,85],[154,52,155,55],[154,56,155,60],[154,16,155,19],[164,6,165,14],[196,72,198,73],[196,74,198,75],[193,49,198,50],[193,51,194,61],[190,38,192,39],[190,40,192,41],[190,42,192,43],[190,44,192,45],[193,62,194,79],[195,11,195,21],[196,32,198,33],[196,34,198,35],[196,36,198,37],[195,42,195,45],[185,71,186,79],[177,63,180,69],[178,36,180,42],[178,43,180,47],[178,48,180,52],[181,12,184,18],[181,19,181,28],[181,29,184,35],[201,62,201,79],[201,82,201,85],[202,74,204,75],[202,76,204,77],[202,78,204,79],[202,80,204,81],[202,82,204,83],[202,84,204,85],[195,82,195,85],[196,76,198,77],[196,78,198,79],[202,38,204,39],[202,40,204,41],[205,22,206,39],[205,40,207,41],[205,42,206,45],[205,49,210,50],[205,51,206,61],[205,62,206,79],[199,62,200,79],[196,64,198,65],[196,66,198,67],[196,68,198,69],[196,70,198,71],[207,22,207,39],[207,42,207,45],[207,51,207,61],[202,30,204,31],[202,64,204,65],[202,66,204,67],[202,68,204,69],[202,70,204,71],[213,11,213,21],[213,22,213,39],[213,42,213,45],[213,51,213,61],[213,62,213,79],[213,82,213,85],[214,11,216,21],[214,22,216,23],[214,24,216,25],[214,26,216,27],[214,28,216,29],[214,30,216,31],[208,42,210,43],[208,44,210,45],[208,51,210,61],[208,62,210,63],[208,64,210,65],[208,66,210,67],[208,68,210,69],[208,30,210,31],[208,32,210,33],[208,34,210,35],[208,36,210,37],[208,38,210,39],[208,40,210,41],[208,78,210,79],[208,84,210,85],[208,70,210,71],[208,72,210,73],[208,74,210,75],[208,76,210,77],[214,38,216,39],[205,9,210,10],[205,11,206,21],[202,72,204,73],[201,42,201,45],[224,40,226,41],[224,42,226,43],[224,44,226,45],[224,46,226,97],[208,11,210,21],[214,78,216,79],[214,80,216,81],[214,82,216,83],[214,84,216,85],[220,83,222,87],[220,88,222,92],[220,93,222,97],[220,59,222,62],[220,63,222,66],[214,68,216,69],[214,70,216,71],[214,72,216,73],[214,74,216,75],[214,76,216,77],[211,51,212,61],[211,62,212,79],[205,80,207,81],[205,82,206,85],[206,86,207,97],[196,86,205,97],[202,24,204,25],[202,26,204,27],[202,28,204,29],[232,20,234,66],[232,67,234,73],[202,34,204,35],[217,67,219,97],[220,50,222,52]],"merged_total":2131,"flags":["merged_cut"]}
[]
[null,null,null,null,null,null,"※",null,null,null,null,null,null,null,null,null,null,null,null,null,null,null,null,null,null,null,null,null,null,null,null,null,null,null,null,null,null,null,null,null,null,null,"※　　　種　　　別",null,null,null,null,null,null,null,null,null,null,null,null,null,null,null,null,"※　　　　　　　整　理　番　号",null,null,null,null,null,null,null,null,null,null,null,null,null,null,null,null,null,null,null,null,null,null,null,null,"※"]
[]
[null,null,null,null,null,null,null,null,null,null,null,null,null,null,null,null,null,null,null,null,null,null,null,null,null,null,null,null,null,null,null,null,null,null,null,null,null,null,null,null,null,null,null,null,null,null,null,null,null,null,null,null,null,null,null,null,null,null,null,null,null,null,null,null,null,null,null,null,null,null,null,null,null,null,null,null,null,null,null,null,null,null,null,null,null,null,null,null,null,null,null,null,null,null,null,null,null,null,null,null,null,null,null,null,null,null,null,null,null,null,null,null,"給与支払報告書・源泉徴収票作成シート入力上の注意"]
[]
[]
[null,null,null,null,null,null,"支　払",null,null,null,null,null,"※区分",null,null,null,null,null,null,null,null,null,null,null,null,null,null,null,null,null,null,null,null,null,null,null,null,null,null,null,null,null,null,null,null,null,null,null,null,null,null,null,null,null,null,null,null,null,null,"(受給者番号)"]
[]
[null,null,null,null,null,null,null,null,null,null,null,null,"住 所",null,null,null,null,null,null,null,null,null,null,null,null,null,null,null,null,null,null,null,null,null,null,null,null,null,null,null,null,null,null,null,null,null,null,null,null,null,null,null,null,null,null,null,null,null,null,"（個人番号)",null,null,null,null,null,null,null,null,null,null,null,null,null,null,null,null,null,null,null,null,null,null,null,null,null,null,null,null,null,null,null,null,null,null,null,null,null,null,null,null,null,null,null,null,null,null,null,null,null,null,null,null,"左の作成シートの色が塗ってある部分に数字等を入力すると、給与支払報告書"]
[]
[]
[null,null,null,null,null,null,null,null,null,null,null,null,null,null,null,null,null,null,null,null,null,null,null,null,null,null,null,null,null,null,null,null,null,null,null,null,null,null,null,null,null,null,null,null,null,null,null,null,null,null,null,null,null,null,null,null,null,null,null,"（役職名）"]
[null,null,null,null,null,null,null,null,null,null,null,null,null,null,null,null,null,null,null,null,null,null,null,null,null,null,null,null,null,null,null,null,null,null,null,null,null,null,null,null,null,null,null,null,null,null,null,null,null,null,null,null,null,null,null,null,null,null,null,null,null,null,null,null,null,null,null,null,null,null,null,null,null,null,null,null,null,null,null,null,null,null,null,null,null,null,null,null,null,null,null,null,null,null,null,null,null,null,null,null,null,null,null,null,null,null,null,null,null,null,null,null,"（市区町村提出用）、源泉徴収票（税務署提出用）及び源泉徴収票（受給者交"]
[null,null,null,null,null,null,"を受け"]
[null,null,null,null,null,null,null,null,null,null,null,null,null,null,null,null,null,null,null,null,null,null,null,null,null,null,null,null,null,null,null,null,null,null,null,null,null,null,null,null,null,null,null,null,null,null,null,null,null,null,null,null,null,null,null,null,null,null,null,"氏名",null,null,null,"（フリガナ）"]
[]
[null,null,null,null,null,null,"る　者",null,null,null,null,null,null,null,null,null,null,null,null,null,null,null,null,null,null,null,null,null,null,null,null,null,null,null,null,null,null,null,null,null,null,null,null,null,null,null,null,null,null,null,null,null,null,null,null,null,null,null,null,null,null,null,null,null,null,null,null,null,null,null,null,null,null,null,null,null,null,null,null,null,null,null,null,null,null,null,null,null,null,null,null,null,null,null,null,null,null,null,null,null,null,null,null,null,null,null,null,null,null,null,null,null,"付用）が作成されます。"]
[]
[]
[]
[null,null,null,null,null,null,"種　　　別",null,null,null,null,null,null,null,null,null,null,null,null,null,null,null,"支  払  金  額",null,null,null,null,null,null,null,null,null,null,null,null,null,null,null,null,null,null,"給与所得控除後の金額",null,null,null,null,null,null,null,null,null,null,null,null,null,null,null,null,null,null,"所得控除の額の合計額",null,null,null,null,null,null,null,null,null,null,null,null,null,null,null,null,null,null,"源 泉 徴 収 税 額",null,null,null,null,null,null,null,null,null,null,null,null,null,null,null,null,null,null,null,null,null,null,null,null,null,null,null,null,null,null,null,null,"水色",null,null,null,null,null,null,null,null,null,null,null,"の部分は必須項目です。必ず入力してください。"]
[]
[null,null,null,null,null,null,null,null,null,null,null,null,null,null,null,null,null,null,null,null,null,null,null,null,null,null,null,null,null,null,null,null,null,null,null,null,null,null,null,null,null,"( 調 整 控 除 後 ）"]
[]
[null,null,null,null,null,null,null,null,null,null,null,null,null,null,null,null,null,null,null,null,null,null,"内",null,null,null,null,null,null,null,null,null,null,null,null,null,null,null,null,"円",null,"　　　　  　　　　　　　　円",null,null,null,null,null,null,null,null,null,null,null,null,null,null,null,null,null,null,"円",null,null,null,null,null,null,null,null,null,null,null,null,null,null,null,null,null,null,"内",null,null,null,null,null,null,null,null,null,null,null,null,null,null,null,null,"円"]
[null,null,null,null,null,null,null,null,null,null,null,null,null,null,null,null,null,null,null,null,null,null,null,null,null,null,null,null,null,null,null,null,null,null,null,null,null,null,null,null,null,null,null,null,null,null,null,null,null,null,null,null,null,null,null,null,null,null,null,null,null,null,null,null,null,null,null,null,null,null,null,null,null,null,null,null,null,null,null,null,null,null,null,null,null,null,null,null,null,null,null,null,null,null,null,null,null,null,null,null,null,null,null,null,null,null,null,null,null,null,null,null,"クリーム色",null,null,null,null,null,null,null,null,null,null,null,"の部分は、必要に応じて入力してください。"]
[]
[]
[]
[null,null,null,null,null,null,null,null,null,null,null,null,null,null,null,null,null,null,null,null,null,null,null,null,null,null,null,null,null,null,null,null,null,null,null,null,null,null,null,null,null,null,null,null,null,null,null,null,null,null,null,null,null,null,null,null,null,null,null,null,null,null,null,null,null,null,null,null,null,null,null,null,null,null,null,null,null,null,null,null,null,null,null,null,null,null,null,null,null,null,null,null,null,null,null,null,null,null,null,null,null,null,null,null,null,null,null,null,null,null,null,null,"入力が終了したら、下の印刷ボタンを押して、印刷してください。"]
[null,null,null,null,null,null,"(源泉) 控除対象",null,null,null,null,null,null,null,null,null,null,null,null,null,null,null,null,null,null,null,null,null,null,null,null,null,null,null,"控除対象扶養親族等の数",null,null,null,null,null,null,null,null,null,null,null,null,null,null,null,null,null,null,null,null,null,null,null,null,null,null,null,null,null,null,null,null,null,null,null,null,null,null,null,"16歳未満",null,null,null,null,null,"障害者の数",null,null,null,null,null,null,null,null,null,null,null,"非居住者"]
[null,null,null,null,null,null,null,null,null,null,null,null,null,null,null,null,null,null,null,null," 配偶者（特別）"]
[null,null,null,null,null,null," 配偶者の有無等",null,null,null,null,null,null,null,null,null,null,null,null,null,null,null,null,null,null,null,null,null,null,null,null,null,null,null,"（配偶者を除く。）",null,null,null,null,null,null,null,null,null,null,null,null,null,null,null,null,null,null,null,null,null,null,null,null,null,null,null,null,null,null,null,null,null,null,null,null,null,null,null,"扶養親族",null,null,null,null,null,"（本人を除く。）",null,null,null,null,null,null,null,null,null,null,null,"である"]
[null,null,null,null,null,null,null,null,null,null,null,null,null,null,null,null,null,null,null,null," 控 除 の 額"]
[null,null,null,null,null,null,null,null,null,null,null,null,null,null,null,null,"老人",null,null,null,null,null,null,null,null,null,null,null,null,null,null,null,null,null,"特　定",null,null,null,null,null,null,null,null,"老   人",null,null,null,null,null,null,null,null,null,null,null,null,"その他",null,null,null,null,null,null,null,null,"特   親",null,null,null,null,null,null,null,null,"の数",null,null,null,null,null,"特　 別",null,null,null,null,null,null,null,"その他",null,null,null,"親族の数"]
[]
[null,null,null,null,null,null,"有",null,null,null,null,"従有",null,null,null,null,null,null,null,null,"              円",null,null,null,null,null,null,null,null,null,null,null,null,null,"   人",null,null,null,null,"従人",null,null,null," 内",null,null,null,"   人",null,null,null,null,"従人",null,null,null,"  人",null,null,null,null,"従人",null,null,null,"  人",null,null,null,null,"従人",null,null,null,"人",null,null,null,null,null,"　内",null,null,null,"　　人",null,null,null,"　　人",null,null,null,"人"]
[]
[null,null,null,null,null,null,"　",null,null,null,null,"　",null,null,null,null,"　",null,null,null,null,null,null,null,null,null,null,null,null,null,null,null,null,null,null,null,null,null,null,null,null,null,null,null,null,null,null,null,null,null,null,null,null,null,null,null,null,null,null,null,null,null,null,null,null,null,null,null,null,null,null,null,null,null,null,null,null,null,null,null,null,null,null,null,null,null,null,null,null,null,null,null,null,null,null,null,null,null,null,null,null,null,null,null,null,null,null,null,null,null,null,null,"（注意）"]
[null,null,null,null,null,null,"特定親族特別控除の額",null,null,null,null,null,null,null,null,null,null,null,null,null,null,null,null,null,null,null,"社会保険料等の金額",null,null,null,null,null,null,null,null,null,null,null,null,null,null,null,null,null,null,null,null,"生命保険料の控除額",null,null,null,null,null,null,null,null,null,null,null,null,null,null,null,null,"地震保険料の控除額",null,null,null,null,null,null,null,null,null,null,null,null,null,null,null,null,"住宅借入金等特別控除の額"]
[]
[null,null,null,null,null,null,"　　　　　　　　　　　　　　　　円",null,null,null,null,null,null,null,null,null,null,null,null,null,null,null,null,null,null,null,"　内",null,null,null,null,null,null,null,null,null,null,null,null,null,null,null,null,null,null,"円",null,"　　　　　　　　　　　　　　　　円",null,null,null,null,null,null,null,null,null,null,null,null,null,null,null,null,"　　　　　　　　　　　　　　　　円",null,null,null,null,null,null,null,null,null,null,null,null,null,null,null,null,"円"]
[null,null,null,null,null,null,null,null,null,null,null,null,null,null,null,null,null,null,null,null,null,null,null,null,null,null,null,null,null,null,null,null,null,null,null,null,null,null,null,null,null,null,null,null,null,null,null,null,null,null,null,null,null,null,null,null,null,null,null,null,null,null,null,null,null,null,null,null,null,null,null,null,null,null,null,null,null,null,null,null,null,null,null,null,null,null,null,null,null,null,null,null,null,null,null,null,null,null,null,null,null,null,null,null,null,null,null,null,null,null,null,null,"・印刷された全ての帳票について、入力した数字・文字・記号等が正確に"]
[]
[]
[]
[null,null,null,null,null,null,"(摘要)",null,null,null,null,null,null,null,null,null,null,null,null,null,null,null,null,null,null,null,null,null,null,null,null,null,null,null,null,null,null,null,null,null,null,null,null,null,null,null,null,null,null,null,null,null,null,null,null,null,null,null,null,null,null,null,null,null,null,null,null,null,null,null,null,null,null,null,null,null,null,null,null,null,null,null,null,null,null,null,null,null,null,null,null,null,null,null,null,null,null,null,null,null,null,null,null,null,null,null,null,null,null,null,null,null,"印字されているか、必ずご確認のうえ、ご使用ください。"]
[]
[]
[]
[null,null,null,null,null,null,null,null,null,null,null,null,null,null,null,null,null,null,null,null,null,null,null,null,null,null,null,null,null,null,null,null,null,null,null,null,null,null,null,null,null,null,null,null,null,null,null,null,null,null,null,null,null,null,null,null,null,null,null,null,null,null,null,null,null,null,null,null,null,null,null,null,null,null,null,null,null,null,null,null,null,null,null,null,null,null,null,null,null,null,null,null,null,null,null,null,null,null,null,null,null,null,null,null,null,null,null,null,null,null,null,null,"・青色の「提出用書類印刷ボタン」を押すと、給与支払報告書（市区町村提出用）、"]
[]
[]
[]
[null,null,null,null,null,null,null,null,null,null,null,null,null,null,null,null,null,null,null,null,null,null,null,null,null,null,null,null,null,null,null,null,null,null,null,null,null,null,null,null,null,null,null,null,null,null,null,null,null,null,null,null,null,null,null,null,null,null,null,null,null,null,null,null,null,null,null,null,null,null,null,null,null,null,null,null,null,null,null,null,null,null,null,null,null,null,null,null,null,null,null,null,null,null,null,null,null,null,null,null,null,null,null,null,null,null,null,null,null,null,null,null,"源泉徴収票（税務署提出用）及び源泉徴収票（受給者交付用）の合計３枚が印刷"]
[null,null,null,null,null,null,"生命保険料の金額の内訳",null,null,null,null,null,"新生命\n保険料\nの金額",null,null,null,null,null,null,"　　 　 　　円",null,null,null,null,null,null,null,null,null,"旧生命\n保険料\nの金額",null,null,null,null,null,null,"　　 　 　　円",null,null,null,null,null,null,null,null,null,"介護医療\n保険料\nの金額",null,null,null,null,null,null,"　　    　円",null,null,null,null,null,null,null,null,null,"新個人年金\n保険料\nの金額",null,null,null,null,null,null,"           円",null,null,null,null,null,null,null,null,null,"旧個人年金\n保険料\nの金額",null,null,null,null,null,null,"            円"]
[]
[null,null,null,null,null,null,null,null,null,null,null,null,null,null,null,null,null,null,null,null,null,null,null,null,null,null,null,null,null,null,null,null,null,null,null,null,null,null,null,null,null,null,null,null,null,null,null,null,null,null,null,null,null,null,null,null,null,null,null,null,null,null,null,null,null,null,null,null,null,null,null,null,null,null,null,null,null,null,null,null,null,null,null,null,null,null,null,null,null,null,null,null,null,null,null,null,null,null,null,null,null,null,null,null,null,null,null,null,null,null,null,null,"されます。"]
[]
[null,null,null,null,null,null,"住宅借入\n金等特別\n控除の\n額の内訳",null,null,null,null,null,"住宅借入金\n等特別控除\n適用数",null,null,null,null,null,null,null,null,null,null,null,null,null,null,null,null,"居住開始\n年月日\n（1回目）",null,null,null,null,null,null,"年",null,null,null,null,null,null,"月",null,null,null,null,"日",null,null,null,null,"住宅借入金等\n特別控除区分\n（1回目）",null,null,null,null,null,null,null,null,null,null,null,null,null,null,null,null,"住宅借入金等\n年末残高\n（1回目）",null,null,null,null,null,null,null,null,null,null,null,null,null,null,null,null,null,null,null,null,null,null,null,null,null,"円"]
[null,null,null,null,null,null,null,null,null,null,null,null,null,null,null,null,null,null,null,null,null,null,null,null,null,null,null,null,null,null,null,null,null,null,null,null,null,null,null,null,null,null,null,null,null,null,null,null,null,null,null,null,null,null,null,null,null,null,null,null,null,null,null,null,null,null,null,null,null,null,null,null,null,null,null,null,null,null,null,null,null,null,null,null,null,null,null,null,null,null,null,null,null,null,null,null,null,null,null,null,null,null,null,null,null,null,null,null,null,null,null,null,"・源泉徴収票（税務署提出用）については、支払金額が法人役員150万円・一般"]
[]
[]
[null,null,null,null,null,null,null,null,null,null,null,null,"住宅借入金\n等特別控除\n可能額",null,null,null,null,null,null,"円",null,null,null,null,null,null,null,null,null,"居住開始\n年月日\n（2回目）",null,null,null,null,null,null,"年",null,null,null,null,null,null,"月",null,null,null,null,"日",null,null,null,null,"住宅借入金等\n特別控除区分\n（2回目）",null,null,null,null,null,null,null,null,null,null,null,null,null,null,null,null,"住宅借入金等\n年末残高\n（2回目）",null,null,null,null,null,null,null,null,null,null,null,null,null,null,null,null,null,null,null,null,null,null,null,null,null,"円",null,null,null,null,null,null,null,null,null,null,null,null,null,null,null,"の受給者500万円を超える者等の場合に使用してください。"]
[]
[]
[null,null,null,null,null,null,null,null,null,null,null,null,null,null,null,null,null,null,null,null,null,null,null,null,null,null,null,null,null,null,null,null,null,null,null,null,null,null,null,null,null,null,null,null,null,null,null,null,null,null,null,null,null,null,null,null,null,null,null,null,null,null,null,null,null,null,null,null,null,null,null,null,null,null,null,null,null,null,null,null,null,null,null,null,null,null,null,null,null,null,null,null,null,null,null,null,null,null,null,null,null,null,null,null,null,null,null,null,null,null,null,null,"・記入例につきましては「給与支払報告書(個人別明細書）の記載上の注意」を"]
[null,null,null,null,null,null,"（源泉・特別）\n控除対象\n配偶者",null,null,null,null,"(フリガナ)",null,null,null,null,null,null,null,null,null,null,null,null,null,null,null,null,null,null,null,null,null,null,null,null,null,null,null,null,"区分",null,null,null,null,null,"配偶者の\n合計所得",null,null,null,null,null,null,"　　　　   円",null,null,null,null,null,null,null,null,null,"国民年金保険料等の金額",null,null,null,null,null,null,null,"円",null,null,null,null,null,null,null,null,"旧長期損害\n保険料の金額",null,null,null,null,null,null,null,null,"円"]
[]
[]
[null,null,null,null,null,null,null,null,null,null,null,"氏名",null,null,null,null,null,null,null,null,null,null,null,null,null,null,null,null,null,null,null,null,null,null,null,null,null,null,null,null,null,null,"　",null,null,null,null,null,null,null,null,null,null,null,null,null,null,null,null,null,null,null,null,null,null,null,null,null,null,null,null,null,null,null,null,null,null,null,null,null,null,null,null,null,null,null,null,null,null,null,null,null,null,null,null,null,null,null,null,null,null,null,null,null,null,null,null,null,null,null,null,null,"ご参照ください。"]
[null,null,null,null,null,null,null,null,null,null,null,null,null,null,null,null,null,null,null,null,null,null,null,null,null,null,null,null,null,null,null,null,null,null,null,null,null,null,null,null,null,null,null,null,null,null,null,null,null,null,null,null,null,null,null,null,null,null,null,null,null,null,null,"基礎控除の額",null,null,null,null,null,null,null,"円",null,null,null,null,null,null,null,null,"所得金額\n調整控除額",null,null,null,null,null,null,null,null,"円"]
[null,null,null,null,null,null,null,null,null,null,null,"個人番号"]
[]
[]
[null,null,null,null,null,null,"控除対象扶養親族等",null,null,1,null,"(フリガナ)",null,null,null,null,null,null,null,null,null,null,null,null,null,null,null,null,null,null,null,null,null,null,null,null,null,null,null,null,"区分",null,null,null,null,null,"16歳未満の扶養親族",null,null,1,null,"(フリガナ)",null,null,null,null,null,null,null,null,null,null,null,null,null,null,null,null,null,null,null,null,null,null,null,null,null,null,null,null,"区分",null,null,null,null,null,"5人目以降の控除対象\n扶養親族の個人番号"]
[null,null,null,null,null,null,null,null,null,null,null,null,null,null,null,null,null,null,null,null,null,null,null,null,null,null,null,null,null,null,null,null,null,null,null,null,null,null,null,null,null,null,null,null,null,null,null,null,null,null,null,null,null,null,null,null,null,null,null,null,null,null,null,null,null,null,null,null,null,null,null,null,null,null,null,null,null,null,null,null,null,null,null,null,null,null,null,null,null,null,null,null,null,null,null,null,null,null,null,null,null,null,null,null,null,null,null,null,null,null,null,null,"下は印刷ボタンです。"]
[null,null,null,null,null,null,null,null,null,null,null,"氏名",null,null,null,null,null,null,null,null,null,null,null,null,null,null,null,null,null,null,null,null,null,null,null,null,null,null,null,null,null,null,null,null,null,null,null,null,null,null,null,"氏名",null,null,null,null,null,null,null,null,null,null,null,null,null,null,null,null,null,null,null,null,null,null,null,null,null,null,null,null,null,null,"　"]
[null,null,null,null,null,null,null,null,null,null,null,"個人番号",null,null,null,null,null,null,null,null,null,null,null,null,null,null,null,null,null,null,null,null,null,null,null,null,null,null,null,null,null,null,null,null,null,null,null,null,null,null,null,"個人番号"]
[]
[]
[null,null,null,null,null,null,null,null,null,2,null,"(フリガナ)",null,null,null,null,null,null,null,null,null,null,null,null,null,null,null,null,null,null,null,null,null,null,null,null,null,null,null,null,"区分",null,null,null,null,null,null,null,null,2,null,"(フリガナ)",null,null,null,null,null,null,null,null,null,null,null,null,null,null,null,null,null,null,null,null,null,null,null,null,null,null,null,null,"区分"]
[]
[null,null,null,null,null,null,null,null,null,null,null,"氏名",null,null,null,null,null,null,null,null,null,null,null,null,null,null,null,null,null,null,null,null,null,null,null,null,null,null,null,null,null,null,null,null,null,null,null,null,null,null,null,"氏名",null,null,null,null,null,null,null,null,null,null,null,null,null,null,null,null,null,null,null,null,null,null,null,null,null,null,null,null,null,null,"　",null,null,null,null,null,null,null,null,null,null,null,null,null,null,null,null,null,null,null,null,null,null,null,null,null,null,null,null,null,null,"上記、「コンテンツの有効化」を押すと下の印刷ボタンが使えるようになります。"]
[null,null,null,null,null,null,null,null,null,null,null,"個人番号",null,null,null,null,null,null,null,null,null,null,null,null,null,null,null,null,null,null,null,null,null,null,null,null,null,null,null,null,null,null,null,null,null,null,null,null,null,null,null,"個人番号"]
[]
[]
[null,null,null,null,null,null,null,null,null,3,null,"(フリガナ)",null,null,null,null,null,null,null,null,null,null,null,null,null,null,null,null,null,null,null,null,null,null,null,null,null,null,null,null,"区分",null,null,null,null,null,null,null,null,3,null,"(フリガナ)",null,null,null,null,null,null,null,null,null,null,null,null,null,null,null,null,null,null,null,null,null,null,null,null,null,null,null,null,"区分"]
[]
[null,null,null,null,null,null,null,null,null,null,null,"氏名",null,null,null,null,null,null,null,null,null,null,null,null,null,null,null,null,null,null,null,null,null,null,null,null,null,null,null,null,null,null,null,null,null,null,null,null,null,null,null,"氏名",null,null,null,null,null,null,null,null,null,null,null,null,null,null,null,null,null,null,null,null,null,null,null,null,null,null,null,null,null,null,"　",null,null,null,"5人目以降の16歳未満の扶養親族の個人番号"]
[null,null,null,null,null,null,null,null,null,null,null,"個人番号",null,null,null,null,null,null,null,null,null,null,null,null,null,null,null,null,null,null,null,null,null,null,null,null,null,null,null,null,null,null,null,null,null,null,null,null,null,null,null,"個人番号"]
[]
[]
[null,null,null,null,null,null,null,null,null,4,null,"(フリガナ)",null,null,null,null,null,null,null,null,null,null,null,null,null,null,null,null,null,null,null,null,null,null,null,null,null,null,null,null,"区分",null,null,null,null,null,null,null,null,4,null,"(フリガナ)",null,null,null,null,null,null,null,null,null,null,null,null,null,null,null,null,null,null,null,null,null,null,null,null,null,null,null,null,"区分"]
[]
[null,null,null,null,null,null,null,null,null,null,null,"氏名",null,null,null,null,null,null,null,null,null,null,null,null,null,null,null,null,null,null,null,null,null,null,null,null,null,null,null,null,null,null,null,null,null,null,null,null,null,null,null,"氏名",null,null,null,null,null,null,null,null,null,null,null,null,null,null,null,null,null,null,null,null,null,null,null,null,null,null,null,null,null,null,"　"]
[null,null,null,null,null,null,null,null,null,null,null,"個人番号",null,null,null,null,null,null,null,null,null,null,null,null,null,null,null,null,null,null,null,null,null,null,null,null,null,null,null,null,null,null,null,null,null,null,null,null,null,null,null,"個人番号"]
[]
[]
[null,null,null,null,null,null,"未成年者",null,null,null,"外国人",null,null,null,"死亡退職",null,null,null,"災害者",null,null,null,"乙欄",null,null,null,"本人が障害者",null,null,null,null,null,null,null,"寡　婦",null,null,null,"ひとり親",null,null,null,"勤労学生",null,null,null,null,null,null,null,"中 途 就 ・ 退 職",null,null,null,null,null,null,null,null,null,null,null,null,null,null,null,null,"受 給 者 生 年 月 日"]
[]
[null,null,null,null,null,null,null,null,null,null,null,null,null,null,null,null,null,null,null,null,null,null,null,null,null,null,"特別",null,null,null,"その他"]
[null,null,null,null,null,null,null,null,null,null,null,null,null,null,null,null,null,null,null,null,null,null,null,null,null,null,null,null,null,null,null,null,null,null,null,null,null,null,null,null,null,null,null,null,null,null,null,null,null,null,"就職",null,null,"退職",null,null,"年",null,null,"月",null,null,null,"日",null,null,null,"元　号",null,null,null,null,null,null,null,null,null,null,null,null,null,null,null,"年",null,null,null,null,"月",null,null,null,null,"日"]
[]
[]
[null,null,null,null,null,null,"　",null,null,null,"　",null,null,null,"　",null,null,null,"　",null,null,null,"　",null,null,null,"　",null,null,null,"　",null,null,null,"　",null,null,null,"　",null,null,null,"　",null,null,null,null,null,null,null,"　",null,null,"　",null,null,7,null,null,null,null,null,null,null,null,null,null,"　　　"]
[null,null,null,null,null,null,null,null,null,null,"個人番号又は\n法人番号",null,null,null,null,null,null,null,null,null,null,null,null,null,null,null,null,null,null,null,null,null,null,null,null,null,null,null,null,null,null,null,null,null,null,null,"（右詰で記載してください。）"]
[]
[null,null,null,null,null,null,null,"支払者"]
[]
[null,null,null,null,null,null,null,null,null,null,"住所(居所)"]
[]
[null,null,null,null,null,null,null,null,null,null,"又は所在地"]
[]
[]
[null,null,null,null,null,null,null,null,null,null,"氏名又は名称",null,null,null,null,null,null,null,null,null,null,null,null,null,null,null,null,null,null,null,null,null,null,null,null,null,null,null,null,null,null,null,null,null,null,null,null,null,null,null,null,null,null,null,null,null,null,null,null,null,null,null,null,null,null,null,null,"（電話）"]
[]
[]
[]
[null,null,null,null,null,null,"   （摘要）に前職分の加算額、支払者等を記入してください。"]
[]
[null,null,null,null,null,null,"※",null,null,null,null,null,null,null,null,null,null,null,null,null,null,null,null,null,null,null,null,null,null,null,null,null,null,null,null,null,null,null,null,null,null,null,"※　　　種　　　別",null,null,null,null,null,null,null,null,null,null,null,null,null,null,null,null,"※　　　　　　　整　理　番　号",null,null,null,null,null,null,null,null,null,null,null,null,null,null,null,null,null,null,null,null,null,null,null,null,"※"]
[]
[null,null,null,null,null,null,null,null,null,null,null,null,null,null,null,null,null,null,null,null,null,null,null,null,null,null,null,null,null,null,null,null,null,null,null,null,null,null,null,null,null,null,null,null,null,null,null,null,null,null,null,null,null,null,null,null,null,null,null,{"$f":"IF($BH$4=\"\",\"\",$BH$4)","v":""},null,null,null,null,null,null,null,null,null,null,null,null,null,null,null,null,null,null,null,null,null,null,null,null,{"$f":"IF($CG$4=\"\",\"\",$CG$4)","v":""}]
[]
[]
[null,null,null,null,null,null,"支　払",null,null,null,null,null,"※区分",null,null,null,null,null,null,null,null,null,null,null,null,null,null,null,null,null,null,null,null,null,null,null,null,null,null,null,null,null,null,null,null,null,null,null,null,null,null,null,null,null,null,null,null,null,null,"(受給者番号)",null,null,null,null,null,null,null,null,null,null,{"$f":"IF($BS$7=\"\",\"\",$BS$7)","v":""}]
[]
[null,null,null,null,null,null,null,null,null,null,null,null,"住 所",null,null,null,{"$f":"IF($Q$9=\"\",\"\",$Q$9)","v":""},null,null,null,null,null,null,null,null,null,null,null,null,null,null,null,null,null,null,null,null,null,null,null,null,null,null,null,null,null,null,null,null,null,null,null,null,null,null,null,null,null,null,"（個人番号)",null,null,null,null,null,null,null,null,null,null,null,null,null,null,{"$f":"IF($BW$9=\"\",\"\",$BW$9)","v":""},null,{"$f":"IF($BY$9=\"\",\"\",$BY$9)","v":""},null,{"$f":"IF($CA$9=\"\",\"\",$CA$9)","v":""},null,{"$f":"IF($CC$9=\"\",\"\",$CC$9)","v":""},null,{"$f":"IF($CE$9=\"\",\"\",$CE$9)","v":""},null,{"$f":"IF($CG$9=\"\",\"\",$CG$9)","v":""},null,{"$f":"IF($CI$9=\"\",\"\",$CI$9)","v":""},null,{"$f":"IF($CK$9=\"\",\"\",$CK$9)","v":""},null,{"$f":"IF($CM$9=\"\",\"\",$CM$9)","v":""},null,{"$f":"IF($CO$9=\"\",\"\",$CO$9)","v":""},null,{"$f":"IF($CQ$9=\"\",\"\",$CQ$9)","v":""},null,{"$f":"IF($CS$9=\"\",\"\",$CS$9)","v":""}]
[]
[]
[null,null,null,null,null,null,null,null,null,null,null,null,null,null,null,null,null,null,null,null,null,null,null,null,null,null,null,null,null,null,null,null,null,null,null,null,null,null,null,null,null,null,null,null,null,null,null,null,null,null,null,null,null,null,null,null,null,null,null,"（役職名）",null,null,null,null,null,null,null,null,null,{"$f":"IF($BR$12=\"\",\"\",$BR$12)","v":""}]
[null,null,null,null,null,null,"を受け"]
[null,null,null,null,null,null,null,null,null,null,null,null,null,null,null,null,null,null,null,null,null,null,null,null,null,null,null,null,null,null,null,null,null,null,null,null,null,null,null,null,null,null,null,null,null,null,null,null,null,null,null,null,null,null,null,null,null,null,null,"氏名",null,null,null,"（フリガナ）",null,null,null,null,null,null,null,{"$f":"IF($BT$15=\"\",\"\",$BT$15)","v":""}]
[]
[null,null,null,null,null,null,"る　者",null,null,null,null,null,null,null,null,null,null,null,null,null,null,null,null,null,null,null,null,null,null,null,null,null,null,null,null,null,null,null,null,null,null,null,null,null,null,null,null,null,null,null,null,null,null,null,null,null,null,null,null,null,null,null,null,{"$f":"IF($BL$17=\"\",\"\",$BL$17)","v":""}]
[]
[]
[]
[null,null,null,null,null,null,"種　　　別",null,null,null,null,null,null,null,null,null,null,null,null,null,null,null,"支  払  金  額",null,null,null,null,null,null,null,null,null,null,null,null,null,null,null,null,null,null,"給与所得控除後の金額",null,null,null,null,null,null,null,null,null,null,null,null,null,null,null,null,null,null,"所得控除の額の合計額",null,null,null,null,null,null,null,null,null,null,null,null,null,null,null,null,null,null,"源 泉 徴 収 税 額"]
[]
[null,null,null,null,null,null,null,null,null,null,null,null,null,null,null,null,null,null,null,null,null,null,null,null,null,null,null,null,null,null,null,null,null,null,null,null,null,null,null,null,null,"( 調 整 控 除 後 ）"]
[]
[null,null,null,null,null,null,{"$f":"IF($G$25=\"\",\"\",$G$25)","v":""},null,null,null,null,null,null,null,null,null,null,null,null,null,null,null,"内",null,null,null,{"$f":"IF($AA$25=\"\",\"\",$AA$25)","v":""},null,null,null,null,null,null,null,null,null,null,null,null,"円",null,"　　　　  　　　　　　　　円",null,null,null,null,null,null,null,null,null,null,null,null,null,null,null,null,null,null,"円",null,null,null,null,null,null,null,null,null,null,null,null,null,null,null,null,null,null,"内",null,{"$f":"IF($CD$25=\"\",\"\",$CD$25)","v":""},null,null,null,null,null,null,null,null,null,null,null,null,null,null,"円"]
[]
[null,null,null,null,null,null,null,null,null,null,null,null,null,null,null,null,null,null,null,null,null,null,{"$f":"IF($W$27=\"\",\"\",$W$27)","v":""},null,null,null,null,null,null,null,null,null,null,null,null,null,null,null,null,null,null,{"$f":"IF($AP$27=\"\",\"\",$AP$27)","v":""},null,null,null,null,null,null,null,null,null,null,null,null,null,null,null,null,null,null,{"$f":"IF($BI$27=\"\",\"\",$BI$27)","v":""},null,null,null,null,null,null,null,null,null,null,null,null,null,null,null,null,null,null,{"$f":"IF($CB$27=\"\",\"\",$CB$27)","v":""}]
[]
[]
[null,null,null,null,null,null,"(源泉) 控除対象",null,null,null,null,null,null,null,null,null,null,null,null,null,null,null,null,null,null,null,null,null,null,null,null,null,null,null,"控除対象扶養親族等の数",null,null,null,null,null,null,null,null,null,null,null,null,null,null,null,null,null,null,null,null,null,null,null,null,null,null,null,null,null,null,null,null,null,null,null,null,null,null,null,"16歳未満",null,null,null,null,null,"障害者の数",null,null,null,null,null,null,null,null,null,null,null,"非居住者"]
[null,null,null,null,null,null,null,null,null,null,null,null,null,null,null,null,null,null,null,null," 配偶者（特別）"]
[null,null,null,null,null,null," 配偶者の有無等",null,null,null,null,null,null,null,null,null,null,null,null,null,null,null,null,null,null,null,null,null,null,null,null,null,null,null,"（配偶者を除く。）",null,null,null,null,null,null,null,null,null,null,null,null,null,null,null,null,null,null,null,null,null,null,null,null,null,null,null,null,null,null,null,null,null,null,null,null,null,null,null,"扶養親族",null,null,null,null,null,"（本人を除く。）",null,null,null,null,null,null,null,null,null,null,null,"である"]
[null,null,null,null,null,null,null,null,null,null,null,null,null,null,null,null,null,null,null,null," 控 除 の 額"]
[null,null,null,null,null,null,null,null,null,null,null,null,null,null,null,null,"老人",null,null,null,null,null,null,null,null,null,null,null,null,null,null,null,null,null,"特　定",null,null,null,null,null,null,null,null,"老   人",null,null,null,null,null,null,null,null,null,null,null,null,"その他",null,null,null,null,null,null,null,null,"特   親",null,null,null,null,null,null,null,null,"の数",null,null,null,null,null,"特　 別",null,null,null,null,null,null,null,"その他",null,null,null,"親族の数"]
[]
[null,null,null,null,null,null,"有",null,null,null,null,"従有",null,null,null,null,null,null,null,null," 円",null,null,null,null,null,null,null,null,null,null,null,null,null,"   人",null,null,null,null,"従人",null,null,null," 内",null,null,null,"   人",null,null,null,null,"従人",null,null,null,"  人",null,null,null,null,"従人",null,null,null,"  人",null,null,null,null,"従人",null,null,null,"人",null,null,null,null,null,"　内",null,null,null,"　　人",null,null,null,"　　人",null,null,null,"人"]
[]
[null,null,null,null,null,null,{"$f":"IF($G$39=\"\",\"\",$G$39)","v":"　"},null,null,null,null,{"$f":"IF($L$39=\"\",\"\",$L$39)","v":"　"},null,null,null,null,{"$f":"IF($Q$39=\"\",\"\",$Q$39)","v":"　"},null,null,null,{"$f":"IF($U$39=\"\",\"\",$U$39)","v":""},null,null,null,null,null,null,null,null,null,null,null,null,null,{"$f":"IF($AI$39=\"\",\"\",$AI$39)","v":""},null,null,null,null,{"$f":"IF($AN$39=\"\",\"\",$AN$39)","v":""},null,null,null,{"$f":"IF($AR$39=\"\",\"\",$AR$39)","v":""},null,null,null,{"$f":"IF($AV$39=\"\",\"\",$AV$39)","v":""},null,null,null,null,{"$f":"IF($BA$39=\"\",\"\",$BA$39)","v":""},null,null,null,{"$f":"IF($BE$39=\"\",\"\",$BE$39)","v":""},null,null,null,null,{"$f":"IF($BJ$39=\"\",\"\",$BJ$39)","v":""},null,null,null,{"$f":"IF($BN$39=\"\",\"\",$BN$39)","v":""},null,null,null,null,{"$f":"IF($BS$39=\"\",\"\",$BS$39)","v":""},null,null,null,{"$f":"IF($BW$39=\"\",\"\",$BW$39)","v":""},null,null,null,null,null,{"$f":"IF($CC$39=\"\",\"\",$CC$39)","v":""},null,null,null,{"$f":"IF($CG$39=\"\",\"\",$CG$39)","v":""},null,null,null,{"$f":"IF($CK$39=\"\",\"\",$CK$39)","v":""},null,null,null,{"$f":"IF($CO$39=\"\",\"\",$CO$39)","v":""}]
[null,null,null,null,null,null,"特定親族特別控除の額",null,null,null,null,null,null,null,null,null,null,null,null,null,null,null,null,null,null,null,"社会保険料等の金額",null,null,null,null,null,null,null,null,null,null,null,null,null,null,null,null,null,null,null,null,"生命保険料の控除額",null,null,null,null,null,null,null,null,null,null,null,null,null,null,null,null,"地震保険料の控除額",null,null,null,null,null,null,null,null,null,null,null,null,null,null,null,null,"住宅借入金等特別控除の額"]
[]
[null,null,null,null,null,null,"　　　　　　　　　　　　　　　　円",null,null,null,null,null,null,null,null,null,null,null,null,null,null,null,null,null,null,null,"　内",null,null,null,{"$f":"IF($AE$42=\"\",\"\",$AE$42)","v":""},null,null,null,null,null,null,null,null,null,null,null,null,null,null,"円",null,"　　　　　　　　　　　　　　　　円",null,null,null,null,null,null,null,null,null,null,null,null,null,null,null,null,"　　　　　　　　　　　　　　　　円",null,null,null,null,null,null,null,null,null,null,null,null,null,null,null,null,"円"]
[]
[null,null,null,null,null,null,{"$f":"IF($G$44=\"\",\"\",$G$44)","v":""},null,null,null,null,null,null,null,null,null,null,null,null,null,null,null,null,null,null,null,{"$f":"IF($AA$44=\"\",\"\",$AA$44)","v":""},null,null,null,null,null,null,null,null,null,null,null,null,null,null,null,null,null,null,null,null,{"$f":"IF($AV$44=\"\",\"\",$AV$44)","v":""},null,null,null,null,null,null,null,null,null,null,null,null,null,null,null,null,{"$f":"IF($BM$44=\"\",\"\",$BM$44)","v":""},null,null,null,null,null,null,null,null,null,null,null,null,null,null,null,null,{"$f":"IF($CD$44=\"\",\"\",$CD$44)","v":""}]
[]
[]
[null,null,null,null,null,null,"(摘要)"]
[]
[null,null,null,null,null,null,{"$f":"IF($G$49=\"\",\"\",$G$49)","v":""}]
[]
[]
[]
[]
[]
[]
[null,null,null,null,null,null,"生命保険料の金額の内訳",null,null,null,null,null,"新生命\n保険料\nの金額",null,null,null,null,null,null,"　　 　 　　円",null,null,null,null,null,null,null,null,null,"旧生命\n保険料\nの金額",null,null,null,null,null,null,"　　 　 　　円",null,null,null,null,null,null,null,null,null,"介護医療\n保険料\nの金額",null,null,null,null,null,null,"　　　    　円",null,null,null,null,null,null,null,null,null,"新個人年金\n保険料\nの金額",null,null,null,null,null,null,"            円",null,null,null,null,null,null,null,null,null,"旧個人年金\n保険料\nの金額",null,null,null,null,null,null,"             円"]
[null,null,null,null,null,null,null,null,null,null,null,null,null,null,null,null,null,null,null,{"$f":"IF($T$57=\"\",\"\",$T$57)","v":""},null,null,null,null,null,null,null,null,null,null,null,null,null,null,null,null,{"$f":"IF($AK$57=\"\",\"\",$AK$57)","v":""},null,null,null,null,null,null,null,null,null,null,null,null,null,null,null,null,{"$f":"IF($BB$57=\"\",\"\",$BB$57)","v":""},null,null,null,null,null,null,null,null,null,null,null,null,null,null,null,null,{"$f":"IF($BS$57=\"\",\"\",$BS$57)","v":""},null,null,null,null,null,null,null,null,null,null,null,null,null,null,null,null,{"$f":"IF($CJ$57=\"\",\"\",$CJ$57)","v":""}]
[]
[]
[null,null,null,null,null,null,"住宅借入\n金等特別\n控除の\n額の内訳",null,null,null,null,null,"住宅借入金\n等特別控除\n適用数",null,null,null,null,null,null,{"$f":"IF($T$60=\"\",\"\",$T$60)","v":""},null,null,null,null,null,null,null,null,null,"居住開始\n年月日\n（1回目）",null,null,null,null,null,null,"年",null,null,null,null,null,null,"月",null,null,null,null,"日",null,null,null,null,"住宅借入金等\n特別控除区分\n（1回目）",null,null,null,null,null,null,null,null,null,{"$f":"IF($BL$60=\"\",\"\",$BL$60)","v":""},null,null,null,null,null,null,"住宅借入金等\n年末残高\n（1回目）",null,null,null,null,null,null,null,null,null,{"$f":"IF($CC$60=\"\",\"\",$CC$60)","v":""},null,null,null,null,null,null,null,null,null,null,null,null,null,null,null,"円"]
[null,null,null,null,null,null,null,null,null,null,null,null,null,null,null,null,null,null,null,null,null,null,null,null,null,null,null,null,null,null,null,null,null,null,null,null,{"$f":"IF($AK$61=\"\",\"\",$AK$61)","v":""},null,null,null,null,null,null,{"$f":"IF($AR$61=\"\",\"\",$AR$61)","v":""},null,null,null,null,{"$f":"IF($AW$61=\"\",\"\",$AW$61)","v":""}]
[]
[]
[null,null,null,null,null,null,null,null,null,null,null,null,"住宅借入金\n等特別控除\n可能額",null,null,null,null,null,null,"円",null,null,null,null,null,null,null,null,null,"居住開始\n年月日\n（2回目）",null,null,null,null,null,null,"年",null,null,null,null,null,null,"月",null,null,null,null,"日",null,null,null,null,"住宅借入金等\n特別控除区分\n（2回目）",null,null,null,null,null,null,null,null,null,{"$f":"IF($BL$64=\"\",\"\",$BL$64)","v":""},null,null,null,null,null,null,"住宅借入金等\n年末残高\n（2回目）",null,null,null,null,null,null,null,null,null,{"$f":"IF($CC$64=\"\",\"\",$CC$64)","v":""},null,null,null,null,null,null,null,null,null,null,null,null,null,null,null,"円"]
[null,null,null,null,null,null,null,null,null,null,null,null,null,null,null,null,null,null,null,{"$f":"IF($T$65=\"\",\"\",$T$65)","v":""},null,null,null,null,null,null,null,null,null,null,null,null,null,null,null,null,{"$f":"IF($AK$65=\"\",\"\",$AK$65)","v":""},null,null,null,null,null,null,{"$f":"IF($AR$65=\"\",\"\",$AR$65)","v":""},null,null,null,null,{"$f":"IF($AW$65=\"\",\"\",$AW$65)","v":""}]
[]
[]
[null,null,null,null,null,null,"（源泉・特別）\n控除対象\n配偶者",null,null,null,null,"(フリガナ)",null,null,null,null,null,null,null,null,null,null,{"$f":"IF($W$68=\"\",\"\",$W$68)","v":""},null,null,null,null,null,null,null,null,null,null,null,null,null,null,null,null,null,"区分",null,{"$f":"IF($AQ$71=\"\",\"\",$AQ$71)","v":"　"},null,null,null,"配偶者の\n合計所得",null,null,null,null,null,null,"　　　   円",null,null,null,null,null,null,null,null,null,"国民年金保険料等の金額",null,null,null,null,null,null,null,"円",null,null,null,null,null,null,null,null,"旧長期損害\n保険料の金額",null,null,null,null,null,null,null,null,"円"]
[]
[null,null,null,null,null,null,null,null,null,null,null,null,null,null,null,null,null,null,null,null,null,null,null,null,null,null,null,null,null,null,null,null,null,null,null,null,null,null,null,null,null,null,null,null,null,null,null,null,null,null,null,null,null,null,null,null,null,null,null,null,null,null,null,null,null,null,null,null,null,null,null,{"$f":"IF($BT$70=\"\",\"\",$BT$70)","v":""},null,null,null,null,null,null,null,null,null,null,null,null,null,null,null,null,null,{"$f":"IF($CL$70=\"\",\"\",$CL$70)","v":""}]
[null,null,null,null,null,null,null,null,null,null,null,"氏名",null,null,null,null,null,null,null,null,null,null,{"$f":"IF($W$71=\"\",\"\",$W$71)","v":""},null,null,null,null,null,null,null,null,null,null,null,null,null,null,null,null,null,null,null,null,null,null,null,null,null,null,null,null,null,null,{"$f":"IF($BB$71=\"\",\"\",$BB$71)","v":""}]
[null,null,null,null,null,null,null,null,null,null,null,null,null,null,null,null,null,null,null,null,null,null,null,null,null,null,null,null,null,null,null,null,null,null,null,null,null,null,null,null,null,null,null,null,null,null,null,null,null,null,null,null,null,null,null,null,null,null,null,null,null,null,null,"基礎控除の額",null,null,null,null,null,null,null,"円",null,null,null,null,null,null,null,null,"所得金額\n調整控除額",null,null,null,null,null,null,null,null,"円"]
[null,null,null,null,null,null,null,null,null,null,null,"個人番号",null,null,null,null,null,null,null,null,null,null,{"$f":"IF($W$73=\"\",\"\",$W$73)","v":""},null,{"$f":"IF($Y$73=\"\",\"\",$Y$73)","v":""},null,{"$f":"IF($AA$73=\"\",\"\",$AA$73)","v":""},null,{"$f":"IF($AC$73=\"\",\"\",$AC$73)","v":""},null,{"$f":"IF($AE$73=\"\",\"\",$AE$73)","v":""},null,{"$f":"IF($AG$73=\"\",\"\",$AG$73)","v":""},null,{"$f":"IF($AI$73=\"\",\"\",$AI$73)","v":""},null,{"$f":"IF($AK$73=\"\",\"\",$AK$73)","v":""},null,{"$f":"IF($AM$73=\"\",\"\",$AM$73)","v":""},null,{"$f":"IF($AO$73=\"\",\"\",$AO$73)","v":""},null,{"$f":"IF($AQ$73=\"\",\"\",$AQ$73)","v":""},null,{"$f":"IF($AS$73=\"\",\"\",$AS$73)","v":""},null,null,null,null,null,null,null,null,null,null,null,null,null,null,null,null,null,null,null,null,null,null,null,null,null,null,{"$f":"IF($BT$73=\"\",\"\",$BT$73)","v":""},null,null,null,null,null,null,null,null,null,null,null,null,null,null,null,null,null,{"$f":"IF($CL$73=\"\",\"\",$CL$73)","v":""}]
[]
[]
[null,null,null,null,null,null,"控除対象扶養親族等",null,null,1,null,"(フリガナ)",null,null,null,null,null,null,null,null,null,null,{"$f":"IF($W$76=\"\",\"\",$W$76)","v":""},null,null,null,null,null,null,null,null,null,null,null,null,null,null,null,null,null,"区分",null,null,null,null,null,"16歳未満の扶養親族",null,null,1,null,"(フリガナ)",null,null,null,null,null,null,null,null,null,null,{"$f":"IF($BK$76=\"\",\"\",$BK$76)","v":""},null,null,null,null,null,null,null,null,null,null,null,null,null,null,null,null,null,"区分",null,null,null,null,null,"5人目以降の控除対象\n扶養親族の個人番号"]
[]
[null,null,null,null,null,null,null,null,null,null,null,"氏名",null,null,null,null,null,null,null,null,null,null,{"$f":"IF($W$78=\"\",\"\",$W$78)","v":""},null,null,null,null,null,null,null,null,null,null,null,null,null,null,null,null,null,null,null,{"$f":"IF($AQ$78=\"\",\"\",$AQ$78)","v":""},null,null,null,null,null,null,null,null,"氏名",null,null,null,null,null,null,null,null,null,null,{"$f":"IF($BK$78=\"\",\"\",$BK$78)","v":""},null,null,null,null,null,null,null,null,null,null,null,null,null,null,null,null,null,null,null,{"$f":"IF($CE$78=\"\",\"\",$CE$78)","v":"　"}]
[null,null,null,null,null,null,null,null,null,null,null,"個人番号",null,null,null,null,null,null,null,null,null,null,{"$f":"IF($W$79=\"\",\"\",$W$79)","v":""},null,{"$f":"IF($Y$79=\"\",\"\",$Y$79)","v":""},null,{"$f":"IF($AA$79=\"\",\"\",$AA$79)","v":""},null,{"$f":"IF($AC$79=\"\",\"\",$AC$79)","v":""},null,{"$f":"IF($AE$79=\"\",\"\",$AE$79)","v":""},null,{"$f":"IF($AG$79=\"\",\"\",$AG$79)","v":""},null,{"$f":"IF($AI$79=\"\",\"\",$AI$79)","v":""},null,{"$f":"IF($AK$79=\"\",\"\",$AK$79)","v":""},null,{"$f":"IF($AM$79=\"\",\"\",$AM$79)","v":""},null,{"$f":"IF($AO$79=\"\",\"\",$AO$79)","v":""},null,{"$f":"IF($AQ$79=\"\",\"\",$AQ$79)","v":""},null,{"$f":"IF($AS$79=\"\",\"\",$AS$79)","v":""},null,null,null,null,null,null,"個人番号",null,null,null,null,null,null,null,null,null,null,{"$f":"IF($BK$79=\"\",\"\",$BK$79)","v":""},null,{"$f":"IF($BM$79=\"\",\"\",$BM$79)","v":""},null,{"$f":"IF($BO$79=\"\",\"\",$BO$79)","v":""},null,{"$f":"IF($BQ$79=\"\",\"\",$BQ$79)","v":""},null,{"$f":"IF($BS$79=\"\",\"\",$BS$79)","v":""},null,{"$f":"IF($BU$79=\"\",\"\",$BU$79)","v":""},null,{"$f":"IF($BW$79=\"\",\"\",$BW$79)","v":""},null,{"$f":"IF($BY$79=\"\",\"\",$BY$79)","v":""},null,{"$f":"IF($CA$79=\"\",\"\",$CA$79)","v":""},null,{"$f":"IF($CC$79=\"\",\"\",$CC$79)","v":""},null,{"$f":"IF($CE$79=\"\",\"\",$CE$79)","v":""},null,{"$f":"IF($CG$79=\"\",\"\",$CG$79)","v":""},null,{"$f":"IF($CI$79=\"\",\"\",$CI$79)","v":""}]
[]
[]
[null,null,null,null,null,null,null,null,null,2,null,"(フリガナ)",null,null,null,null,null,null,null,null,null,null,{"$f":"IF($W$82=\"\",\"\",$W$82)","v":""},null,null,null,null,null,null,null,null,null,null,null,null,null,null,null,null,null,"区分",null,null,null,null,null,null,null,null,2,null,"(フリガナ)",null,null,null,null,null,null,null,null,null,null,{"$f":"IF($BK$82=\"\",\"\",$BK$82)","v":""},null,null,null,null,null,null,null,null,null,null,null,null,null,null,null,null,null,"区分"]
[]
[null,null,null,null,null,null,null,null,null,null,null,"氏名",null,null,null,null,null,null,null,null,null,null,{"$f":"IF($W$84=\"\",\"\",$W$84)","v":""},null,null,null,null,null,null,null,null,null,null,null,null,null,null,null,null,null,null,null,{"$f":"IF($AQ$84=\"\",\"\",$AQ$84)","v":""},null,null,null,null,null,null,null,null,"氏名",null,null,null,null,null,null,null,null,null,null,{"$f":"IF($BK$84=\"\",\"\",$BK$84)","v":""},null,null,null,null,null,null,null,null,null,null,null,null,null,null,null,null,null,null,null,{"$f":"IF($CE$84=\"\",\"\",$CE$84)","v":"　"}]
[null,null,null,null,null,null,null,null,null,null,null,"個人番号",null,null,null,null,null,null,null,null,null,null,{"$f":"IF($W$85=\"\",\"\",$W$85)","v":""},null,{"$f":"IF($Y$85=\"\",\"\",$Y$85)","v":""},null,{"$f":"IF($AA$85=\"\",\"\",$AA$85)","v":""},null,{"$f":"IF($AC$85=\"\",\"\",$AC$85)","v":""},null,{"$f":"IF($AE$85=\"\",\"\",$AE$85)","v":""},null,{"$f":"IF($AG$85=\"\",\"\",$AG$85)","v":""},null,{"$f":"IF($AI$85=\"\",\"\",$AI$85)","v":""},null,{"$f":"IF($AK$85=\"\",\"\",$AK$85)","v":""},null,{"$f":"IF($AM$85=\"\",\"\",$AM$85)","v":""},null,{"$f":"IF($AO$85=\"\",\"\",$AO$85)","v":""},null,{"$f":"IF($AQ$85=\"\",\"\",$AQ$85)","v":""},null,{"$f":"IF($AS$85=\"\",\"\",$AS$85)","v":""},null,null,null,null,null,null,"個人番号",null,null,null,null,null,null,null,null,null,null,{"$f":"IF($BK$85=\"\",\"\",$BK$85)","v":""},null,{"$f":"IF($BM$85=\"\",\"\",$BM$85)","v":""},null,{"$f":"IF($BO$85=\"\",\"\",$BO$85)","v":""},null,{"$f":"IF($BQ$85=\"\",\"\",$BQ$85)","v":""},null,{"$f":"IF($BS$85=\"\",\"\",$BS$85)","v":""},null,{"$f":"IF($BU$85=\"\",\"\",$BU$85)","v":""},null,{"$f":"IF($BW$85=\"\",\"\",$BW$85)","v":""},null,{"$f":"IF($BY$85=\"\",\"\",$BY$85)","v":""},null,{"$f":"IF($CA$85=\"\",\"\",$CA$85)","v":""},null,{"$f":"IF($CC$85=\"\",\"\",$CC$85)","v":""},null,{"$f":"IF($CE$85=\"\",\"\",$CE$85)","v":""},null,{"$f":"IF($CG$85=\"\",\"\",$CG$85)","v":""}]
[]
[]
[null,null,null,null,null,null,null,null,null,3,null,"(フリガナ)",null,null,null,null,null,null,null,null,null,null,{"$f":"IF($W$88=\"\",\"\",$W$88)","v":""},null,null,null,null,null,null,null,null,null,null,null,null,null,null,null,null,null,"区分",null,null,null,null,null,null,null,null,3,null,"(フリガナ)",null,null,null,null,null,null,null,null,null,null,{"$f":"IF($BK$88=\"\",\"\",$BK$88)","v":""},null,null,null,null,null,null,null,null,null,null,null,null,null,null,null,null,null,"区分"]
[null,null,null,null,null,null,null,null,null,null,null,null,null,null,null,null,null,null,null,null,null,null,null,null,null,null,null,null,null,null,null,null,null,null,null,null,null,null,null,null,null,null,null,null,null,null,null,null,null,null,null,null,null,null,null,null,null,null,null,null,null,null,null,null,null,null,null,null,null,null,null,null,null,null,null,null,null,null,null,null,null,null,null,null,null,null,"5人目以降の16歳未満の扶養親族の個人番号"]
[null,null,null,null,null,null,null,null,null,null,null,"氏名",null,null,null,null,null,null,null,null,null,null,{"$f":"IF($W$90=\"\",\"\",$W$90)","v":""},null,null,null,null,null,null,null,null,null,null,null,null,null,null,null,null,null,null,null,{"$f":"IF($AQ$90=\"\",\"\",$AQ$90)","v":""},null,null,null,null,null,null,null,null,"氏名",null,null,null,null,null,null,null,null,null,null,{"$f":"IF($BK$90=\"\",\"\",$BK$90)","v":""},null,null,null,null,null,null,null,null,null,null,null,null,null,null,null,null,null,null,null,{"$f":"IF($CE$90=\"\",\"\",$CE$90)","v":"　"}]
[null,null,null,null,null,null,null,null,null,null,null,"個人番号",null,null,null,null,null,null,null,null,null,null,{"$f":"IF($W$91=\"\",\"\",$W$91)","v":""},null,{"$f":"IF($Y$91=\"\",\"\",$Y$91)","v":""},null,{"$f":"IF($AA$91=\"\",\"\",$AA$91)","v":""},null,{"$f":"IF($AC$91=\"\",\"\",$AC$91)","v":""},null,{"$f":"IF($AE$91=\"\",\"\",$AE$91)","v":""},null,{"$f":"IF($AG$91=\"\",\"\",$AG$91)","v":""},null,{"$f":"IF($AI$91=\"\",\"\",$AI$91)","v":""},null,{"$f":"IF($AK$91=\"\",\"\",$AK$91)","v":""},null,{"$f":"IF($AM$91=\"\",\"\",$AM$91)","v":""},null,{"$f":"IF($AO$91=\"\",\"\",$AO$91)","v":""},null,{"$f":"IF($AQ$91=\"\",\"\",$AQ$91)","v":""},null,{"$f":"IF($AS$91=\"\",\"\",$AS$91)","v":""},null,null,null,null,null,null,"個人番号",null,null,null,null,null,null,null,null,null,null,{"$f":"IF($BK$91=\"\",\"\",$BK$91)","v":""},null,{"$f":"IF($BM$91=\"\",\"\",$BM$91)","v":""},null,{"$f":"IF($BO$91=\"\",\"\",$BO$91)","v":""},null,{"$f":"IF($BQ$91=\"\",\"\",$BQ$91)","v":""},null,{"$f":"IF($BS$91=\"\",\"\",$BS$91)","v":""},null,{"$f":"IF($BU$91=\"\",\"\",$BU$91)","v":""},null,{"$f":"IF($BW$91=\"\",\"\",$BW$91)","v":""},null,{"$f":"IF($BY$91=\"\",\"\",$BY$91)","v":""},null,{"$f":"IF($CA$91=\"\",\"\",$CA$91)","v":""},null,{"$f":"IF($CC$91=\"\",\"\",$CC$91)","v":""},null,{"$f":"IF($CE$91=\"\",\"\",$CE$91)","v":""},null,{"$f":"IF($CG$91=\"\",\"\",$CG$91)","v":""},null,{"$f":"IF($CI$91=\"\",\"\",$CI$91)","v":""}]
[]
[]
[null,null,null,null,null,null,null,null,null,4,null,"(フリガナ)",null,null,null,null,null,null,null,null,null,null,{"$f":"IF($W$94=\"\",\"\",$W$94)","v":""},null,null,null,null,null,null,null,null,null,null,null,null,null,null,null,null,null,"区分",null,null,null,null,null,null,null,null,4,null,"(フリガナ)",null,null,null,null,null,null,null,null,null,null,{"$f":"IF($BK$94=\"\",\"\",$BK$94)","v":""},null,null,null,null,null,null,null,null,null,null,null,null,null,null,null,null,null,"区分"]
[]
[null,null,null,null,null,null,null,null,null,null,null,"氏名",null,null,null,null,null,null,null,null,null,null,{"$f":"IF($W$96=\"\",\"\",$W$96)","v":""},null,null,null,null,null,null,null,null,null,null,null,null,null,null,null,null,null,null,null,{"$f":"IF($AQ$96=\"\",\"\",$AQ$96)","v":""},null,null,null,null,null,null,null,null,"氏名",null,null,null,null,null,null,null,null,null,null,{"$f":"IF($BK$96=\"\",\"\",$BK$96)","v":""},null,null,null,null,null,null,null,null,null,null,null,null,null,null,null,null,null,null,null,{"$f":"IF($CE$96=\"\",\"\",$CE$96)","v":"　"}]
[null,null,null,null,null,null,null,null,null,null,null,"個人番号",null,null,null,null,null,null,null,null,null,null,{"$f":"IF($W$97=\"\",\"\",$W$97)","v":""},null,{"$f":"IF($Y$97=\"\",\"\",$Y$97)","v":""},null,{"$f":"IF($AA$97=\"\",\"\",$AA$97)","v":""},null,{"$f":"IF($AC$97=\"\",\"\",$AC$97)","v":""},null,{"$f":"IF($AE$97=\"\",\"\",$AE$97)","v":""},null,{"$f":"IF($AG$97=\"\",\"\",$AG$97)","v":""},null,{"$f":"IF($AI$97=\"\",\"\",$AI$97)","v":""},null,{"$f":"IF($AK$97=\"\",\"\",$AK$97)","v":""},null,{"$f":"IF($AM$97=\"\",\"\",$AM$97)","v":""},null,{"$f":"IF($AO$97=\"\",\"\",$AO$97)","v":""},null,{"$f":"IF($AQ$97=\"\",\"\",$AQ$97)","v":""},null,{"$f":"IF($AS$97=\"\",\"\",$AS$97)","v":""},null,null,null,null,null,null,"個人番号",null,null,null,null,null,null,null,null,null,null,{"$f":"IF($BK$97=\"\",\"\",$BK$97)","v":""},null,{"$f":"IF($BM$97=\"\",\"\",$BM$97)","v":""},null,{"$f":"IF($BO$97=\"\",\"\",$BO$97)","v":""},null,{"$f":"IF($BQ$97=\"\",\"\",$BQ$97)","v":""},null,{"$f":"IF($BS$97=\"\",\"\",$BS$97)","v":""},null,{"$f":"IF($BU$97=\"\",\"\",$BU$97)","v":""},null,{"$f":"IF($BW$97=\"\",\"\",$BW$97)","v":""},null,{"$f":"IF($BY$97=\"\",\"\",$BY$97)","v":""},null,{"$f":"IF($CA$97=\"\",\"\",$CA$97)","v":""},null,{"$f":"IF($CC$97=\"\",\"\",$CC$97)","v":""},null,{"$f":"IF($CE$97=\"\",\"\",$CE$97)","v":""},null,{"$f":"IF($CG$97=\"\",\"\",$CG$97)","v":""}]
[]
[null,null,"（市区町村提出用）"]
[null,null,null,null,null,null,"未成年者",null,null,null,"外国人",null,null,null,"死亡退職",null,null,null,"災害者",null,null,null,"乙欄",null,null,null,"本人が障害者",null,null,null,null,null,null,null,"寡　婦",null,null,null,"ひとり親",null,null,null,"勤労学生",null,null,null,null,null,null,null,"中 途 就 ・ 退 職",null,null,null,null,null,null,null,null,null,null,null,null,null,null,null,null,"受 給 者 生 年 月 日"]
[]
[null,null,null,null,null,null,null,null,null,null,null,null,null,null,null,null,null,null,null,null,null,null,null,null,null,null,"特別",null,null,null,"その他"]
[null,null,null,null,null,null,null,null,null,null,null,null,null,null,null,null,null,null,null,null,null,null,null,null,null,null,null,null,null,null,null,null,null,null,null,null,null,null,null,null,null,null,null,null,null,null,null,null,null,null,"就職",null,null,"退職",null,null,"年",null,null,"月",null,null,null,"日",null,null,null,"元　号",null,null,null,null,null,null,null,null,null,null,null,null,null,null,null,"年",null,null,null,null,"月",null,null,null,null,"日"]
[]
[]
[null,null,null,null,null,null,{"$f":"IF($G$106=\"\",\"\",$G$106)","v":"　"},null,null,null,{"$f":"IF($K$106=\"\",\"\",$K$106)","v":"　"},null,null,null,{"$f":"IF($O$106=\"\",\"\",$O$106)","v":"　"},null,null,null,{"$f":"IF($S$106=\"\",\"\",$S$106)","v":"　"},null,null,null,{"$f":"IF($W$106=\"\",\"\",$W$106)","v":"　"},null,null,null,{"$f":"IF($AA$106=\"\",\"\",$AA$106)","v":"　"},null,null,null,{"$f":"IF($AE$106=\"\",\"\",$AE$106)","v":"　"},null,null,null,{"$f":"IF($AI$106=\"\",\"\",$AI$106)","v":"　"},null,null,null,{"$f":"IF($AM$106=\"\",\"\",$AM$106)","v":"　"},null,null,null,{"$f":"IF($AQ$106=\"\",\"\",$AQ$106)","v":"　"},null,null,null,null,null,null,null,{"$f":"IF($AY$106=\"\",\"\",$AY$106)","v":"　"},null,null,{"$f":"IF($BB$106=\"\",\"\",$BB$106)","v":"　"},null,null,{"$f":"$BE$106","v":7},null,null,{"$f":"IF($BH$106=\"\",\"\",$BH$106)","v":""},null,null,null,{"$f":"IF($BL$106=\"\",\"\",$BL$106)","v":""},null,null,null,{"$f":"IF($BP$106=\"\",\"\",$BP$106)","v":"　　　"},null,null,null,null,null,null,null,null,null,null,null,null,null,null,null,{"$f":"IF($CF$106=\"\",\"\",$CF$106)","v":""},null,null,null,null,{"$f":"IF($CK$106=\"\",\"\",$CK$106)","v":""},null,null,null,null,{"$f":"IF($CP$106=\"\",\"\",$CP$106)","v":""}]
[null,null,null,null,null,null,null,null,null,null,"個人番号又は\n法人番号",null,null,null,null,null,null,null,null,null,{"$f":"IF($U$107=\"\",\"\",$U$107)","v":""},null,{"$f":"IF($W$107=\"\",\"\",$W$107)","v":""},null,{"$f":"IF($Y$107=\"\",\"\",$Y$107)","v":""},null,{"$f":"IF($AA$107=\"\",\"\",$AA$107)","v":""},null,{"$f":"IF($AC$107=\"\",\"\",$AC$107)","v":""},null,{"$f":"IF($AE$107=\"\",\"\",$AE$107)","v":""},null,{"$f":"IF($AG$107=\"\",\"\",$AG$107)","v":""},null,{"$f":"IF($AI$107=\"\",\"\",$AI$107)","v":""},null,{"$f":"IF($AK$107=\"\",\"\",$AK$107)","v":""},null,{"$f":"IF($AM$107=\"\",\"\",$AM$107)","v":""},null,{"$f":"IF($AO$107=\"\",\"\",$AO$107)","v":""},null,{"$f":"IF($AQ$107=\"\",\"\",$AQ$107)","v":""},null,{"$f":"IF($AS$107=\"\",\"\",$AS$107)","v":""},null,"（右詰で記載してください。）"]
[]
[null,null,null,null,null,null,null,"支払者"]
[null,null,null,null,null,null,null,null,null,null,null,null,null,null,null,null,null,null,null,null,{"$f":"IF($U$110=\"\",\"\",$U$110)","v":""}]
[null,null,null,null,null,null,null,null,null,null,"住所(居所)"]
[]
[]
[]
[null,null,null,null,null,null,null,null,null,null,"氏名又は名称",null,null,null,null,null,null,null,null,null,{"$f":"IF($U$116=\"\",\"\",$U$116)","v":""},null,null,null,null,null,null,null,null,null,null,null,null,null,null,null,null,null,null,null,null,null,null,null,null,null,null,null,null,null,null,null,null,null,null,null,null,null,null,null,null,null,null,null,null,null,null,"（電話）",null,null,null,null,null,null,{"$f":"IF($BW$116=\"\",\"\",$BW$116)","v":""}]
[]
[]
[null,null,null,null,null,null,"   （摘要）に前職分の加算額、支払者等を記入してください。"]
[]
[]
[null,null,null,null,null,null,"令和７年分　給与所得の源泉徴収票",null,null,null,null,null,null,null,null,null,null,null,null,null,null,null,null,null,null,null,null,null,null,null,null,null,null,null,null,null,null,null,null,null,null,null,null,null,null,null,null,null,null,null,null,null,null,null,null,null,null,null,null,null,null,null,null,null,null,null,null,null,null,null,null,null,null,null,null,null,null,null,null,null,null,null,null,null,null,null,null,null,null,null,null,null,null,null,null,null,null,null,null,null,null,null,null,null,null,null,null,"令和７年分　給与所得の源泉徴収票"]
[]
[]
[]
[]
[null,null,null,null,null,null,"支　払",null,null,null,null,null,"住所又は居所",null,null,null,{"$f":"IF($Q$9=\"\",\"\",$Q$9)","v":""},null,null,null,null,null,null,null,null,null,null,null,null,null,null,null,null,null,null,null,null,null,null,null,null,null,null,null,null,null,null,null,null,null,null,null,null,null,null,null,null,null,null,"(受給者番号)",null,null,null,null,null,null,null,null,null,null,{"$f":"IF($BS$7=\"\",\"\",$BS$7)","v":""},null,null,null,null,null,null,null,null,null,null,null,null,null,null,null,null,null,null,null,null,null,null,null,null,null,null,null,null,null,null,null,null,null,null,null,null,"支　払",null,null,null,null,null,"住所又は居所",null,null,null,{"$f":"IF($Q$9=\"\",\"\",$Q$9)","v":""},null,null,null,null,null,null,null,null,null,null,null,null,null,null,null,null,null,null,null,null,null,null,null,null,null,null,null,null,null,null,null,null,null,null,null,null,null,null,null,null,null,null,"(受給者番号)",null,null,null,null,null,null,null,null,null,null,{"$f":"IF($BS$7=\"\",\"\",$BS$7)","v":""}]
[]
[null,null,null,null,null,null,null,null,null,null,null,null,null,null,null,null,null,null,null,null,null,null,null,null,null,null,null,null,null,null,null,null,null,null,null,null,null,null,null,null,null,null,null,null,null,null,null,null,null,null,null,null,null,null,null,null,null,null,null,"（個人番号)",null,null,null,null,null,null,null,null,null,null,null,null,null,null,{"$f":"IF($BW$9=\"\",\"\",$BW$9)","v":""},null,{"$f":"IF($BY$9=\"\",\"\",$BY$9)","v":""},null,{"$f":"IF($CA$9=\"\",\"\",$CA$9)","v":""},null,{"$f":"IF($CC$9=\"\",\"\",$CC$9)","v":""},null,{"$f":"IF($CE$9=\"\",\"\",$CE$9)","v":""},null,{"$f":"IF($CG$9=\"\",\"\",$CG$9)","v":""},null,{"$f":"IF($CI$9=\"\",\"\",$CI$9)","v":""},null,{"$f":"IF($CK$9=\"\",\"\",$CK$9)","v":""},null,{"$f":"IF($CM$9=\"\",\"\",$CM$9)","v":""},null,{"$f":"IF($CO$9=\"\",\"\",$CO$9)","v":""},null,{"$f":"IF($CQ$9=\"\",\"\",$CQ$9)","v":""},null,{"$f":"IF($CS$9=\"\",\"\",$CS$9)","v":""}]
[]
[]
[null,null,null,null,null,null,null,null,null,null,null,null,null,null,null,null,null,null,null,null,null,null,null,null,null,null,null,null,null,null,null,null,null,null,null,null,null,null,null,null,null,null,null,null,null,null,null,null,null,null,null,null,null,null,null,null,null,null,null,"（役職名）",null,null,null,null,null,null,null,null,null,{"$f":"IF($BR$12=\"\",\"\",$BR$12)","v":""},null,null,null,null,null,null,null,null,null,null,null,null,null,null,null,null,null,null,null,null,null,null,null,null,null,null,null,null,null,null,null,null,null,null,null,null,null,null,null,null,null,null,null,null,null,null,null,null,null,null,null,null,null,null,null,null,null,null,null,null,null,null,null,null,null,null,null,null,null,null,null,null,null,null,null,null,null,null,null,null,null,null,null,null,null,null,null,null,null,null,"（役職名）",null,null,null,null,null,null,null,null,null,{"$f":"IF($BR$12=\"\",\"\",$BR$12)","v":""}]
[null,null,null,null,null,null,"を受け",null,null,null,null,null,null,null,null,null,null,null,null,null,null,null,null,null,null,null,null,null,null,null,null,null,null,null,null,null,null,null,null,null,null,null,null,null,null,null,null,null,null,null,null,null,null,null,null,null,null,null,null,null,null,null,null,null,null,null,null,null,null,null,null,null,null,null,null,null,null,null,null,null,null,null,null,null,null,null,null,null,null,null,null,null,null,null,null,null,null,null,null,null,null,null,null,null,null,null,null,"を受け"]
[null,null,null,null,null,null,null,null,null,null,null,null,null,null,null,null,null,null,null,null,null,null,null,null,null,null,null,null,null,null,null,null,null,null,null,null,null,null,null,null,null,null,null,null,null,null,null,null,null,null,null,null,null,null,null,null,null,null,null,"氏名",null,null,null,"（フリガナ）",null,null,null,null,null,null,null,{"$f":"IF($BT$15=\"\",\"\",$BT$15)","v":""},null,null,null,null,null,null,null,null,null,null,null,null,null,null,null,null,null,null,null,null,null,null,null,null,null,null,null,null,null,null,null,null,null,null,null,null,null,null,null,null,null,null,null,null,null,null,null,null,null,null,null,null,null,null,null,null,null,null,null,null,null,null,null,null,null,null,null,null,null,null,null,null,null,null,null,null,null,null,null,null,null,null,null,null,null,null,null,null,"氏名",null,null,null,"（フリガナ）",null,null,null,null,null,null,null,{"$f":"IF($BT$15=\"\",\"\",$BT$15)","v":""}]
[]
[null,null,null,null,null,null,"る　者",null,null,null,null,null,null,null,null,null,null,null,null,null,null,null,null,null,null,null,null,null,null,null,null,null,null,null,null,null,null,null,null,null,null,null,null,null,null,null,null,null,null,null,null,null,null,null,null,null,null,null,null,null,null,null,null,{"$f":"IF($BL$17=\"\",\"\",$BL$17)","v":""},null,null,null,null,null,null,null,null,null,null,null,null,null,null,null,null,null,null,null,null,null,null,null,null,null,null,null,null,null,null,null,null,null,null,null,null,null,null,null,null,null,null,null,"る　者",null,null,null,null,null,null,null,null,null,null,null,null,null,null,null,null,null,null,null,null,null,null,null,null,null,null,null,null,null,null,null,null,null,null,null,null,null,null,null,null,null,null,null,null,null,null,null,null,null,null,null,null,null,null,null,null,{"$f":"IF($BL$17=\"\",\"\",$BL$17)","v":""}]
[]
[]
[]
[null,null,null,null,null,null,"種　　　別",null,null,null,null,null,null,null,null,null,null,null,null,null,null,null,"支  払  金  額",null,null,null,null,null,null,null,null,null,null,null,null,null,null,null,null,null,null,"給与所得控除後の金額",null,null,null,null,null,null,null,null,null,null,null,null,null,null,null,null,null,null,"所得控除の額の合計額",null,null,null,null,null,null,null,null,null,null,null,null,null,null,null,null,null,null,"源 泉 徴 収 税 額",null,null,null,null,null,null,null,null,null,null,null,null,null,null,null,null,null,null,null,null,null,null,null,null,null,null,null,"種　　　別",null,null,null,null,null,null,null,null,null,null,null,null,null,null,null,"支  払  金  額",null,null,null,null,null,null,null,null,null,null,null,null,null,null,null,null,null,null,"給与所得控除後の金額",null,null,null,null,null,null,null,null,null,null,null,null,null,null,null,null,null,null,"所得控除の額の合計額",null,null,null,null,null,null,null,null,null,null,null,null,null,null,null,null,null,null,"源 泉 徴 収 税 額"]
[]
[null,null,null,null,null,null,null,null,null,null,null,null,null,null,null,null,null,null,null,null,null,null,null,null,null,null,null,null,null,null,null,null,null,null,null,null,null,null,null,null,null,"( 調 整 控 除 後 ）",null,null,null,null,null,null,null,null,null,null,null,null,null,null,null,null,null,null,null,null,null,null,null,null,null,null,null,null,null,null,null,null,null,null,null,null,null,null,null,null,null,null,null,null,null,null,null,null,null,null,null,null,null,null,null,null,null,null,null,null,null,null,null,null,null,null,null,null,null,null,null,null,null,null,null,null,null,null,null,null,null,null,null,null,null,null,null,null,null,null,null,null,null,null,null,null,null,null,null,null,"( 調 整 控 除 後 ）"]
[]
[null,null,null,null,null,null,{"$f":"IF($G$25=\"\",\"\",$G$25)","v":""},null,null,null,null,null,null,null,null,null,null,null,null,null,null,null," 内　　　",null,null,null,{"$f":"IF($AA$25=\"\",\"\",$AA$25)","v":""},null,null,null,null,null,null,null,null,null,null,null,null,"円",null,"　　　　  　　　　　　　　円",null,null,null,null,null,null,null,null,null,null,null,null,null,null,null,null,null,null,"円",null,null,null,null,null,null,null,null,null,null,null,null,null,null,null,null,null,null,"内",null,{"$f":"IF($CD$25=\"\",\"\",$CD$25)","v":""},null,null,null,null,null,null,null,null,null,null,null,null,null,null,"円",null,null,null,null,null,null,null,null,null,null,{"$f":"IF($G$25=\"\",\"\",$G$25)","v":""},null,null,null,null,null,null,null,null,null,null,null,null,null,null,null," 内　　　",null,null,null,{"$f":"IF($AA$25=\"\",\"\",$AA$25)","v":""},null,null,null,null,null,null,null,null,null,null,null,null,"円",null,"　　　　  　　　　　　　　円",null,null,null,null,null,null,null,null,null,null,null,null,null,null,null,null,null,null,"円",null,null,null,null,null,null,null,null,null,null,null,null,null,null,null,null,null,null,"内",null,{"$f":"IF($CD$25=\"\",\"\",$CD$25)","v":""},null,null,null,null,null,null,null,null,null,null,null,null,null,null,"円"]
[]
[null,null,null,null,null,null,null,null,null,null,null,null,null,null,null,null,null,null,null,null,null,null,{"$f":"IF($W$27=\"\",\"\",$W$27)","v":""},null,null,null,null,null,null,null,null,null,null,null,null,null,null,null,null,null,null,{"$f":"IF($AP$27=\"\",\"\",$AP$27)","v":""},null,null,null,null,null,null,null,null,null,null,null,null,null,null,null,null,null,null,{"$f":"IF($BI$27=\"\",\"\",$BI$27)","v":""},null,null,null,null,null,null,null,null,null,null,null,null,null,null,null,null,null,null,{"$f":"IF($CB$27=\"\",\"\",$CB$27)","v":""},null,null,null,null,null,null,null,null,null,null,null,null,null,null,null,null,null,null,null,null,null,null,null,null,null,null,null,null,null,null,null,null,null,null,null,null,null,null,null,null,null,null,null,{"$f":"IF($W$27=\"\",\"\",$W$27)","v":""},null,null,null,null,null,null,null,null,null,null,null,null,null,null,null,null,null,null,{"$f":"IF($AP$27=\"\",\"\",$AP$27)","v":""},null,null,null,null,null,null,null,null,null,null,null,null,null,null,null,null,null,null,{"$f":"IF($BI$27=\"\",\"\",$BI$27)","v":""},null,null,null,null,null,null,null,null,null,null,null,null,null,null,null,null,null,null,{"$f":"IF($CB$27=\"\",\"\",$CB$27)","v":""}]
[]
[]
[null,null,null,null,null,null,"(源泉) 控除対象",null,null,null,null,null,null,null,null,null,null,null,null,null,null,null,null,null,null,null,null,null,null,null,null,null,null,null,"控除対象扶養親族等の数",null,null,null,null,null,null,null,null,null,null,null,null,null,null,null,null,null,null,null,null,null,null,null,null,null,null,null,null,null,null,null,null,null,null,null,null,null,null,null,"16歳未満",null,null,null,null,null,"障害者の数",null,null,null,null,null,null,null,null,null,null,null,"非居住者",null,null,null,null,null,null,null,null,null,null,null,null,null,null,"(源泉) 控除対象",null,null,null,null,null,null,null,null,null,null,null,null,null,null,null,null,null,null,null,null,null,null,null,null,null,null,null,"控除対象扶養親族等の数",null,null,null,null,null,null,null,null,null,null,null,null,null,null,null,null,null,null,null,null,null,null,null,null,null,null,null,null,null,null,null,null,null,null,null,null,null,null,null,"16歳未満",null,null,null,null,null,"障害者の数",null,null,null,null,null,null,null,null,null,null,null,"非居住者"]
[null,null,null,null,null,null,null,null,null,null,null,null,null,null,null,null,null,null,null,null," 配偶者（特別）",null,null,null,null,null,null,null,null,null,null,null,null,null,null,null,null,null,null,null,null,null,null,null,null,null,null,null,null,null,null,null,null,null,null,null,null,null,null,null,null,null,null,null,null,null,null,null,null,null,null,null,null,null,null,null,null,null,null,null,null,null,null,null,null,null,null,null,null,null,null,null,null,null,null,null,null,null,null,null,null,null,null,null,null,null,null,null,null,null,null,null,null,null,null,null,null,null,null,null,null," 配偶者（特別）"]
[null,null,null,null,null,null," 配偶者の有無等",null,null,null,null,null,null,null,null,null,null,null,null,null,null,null,null,null,null,null,null,null,null,null,null,null,null,null,"（配偶者を除く。）",null,null,null,null,null,null,null,null,null,null,null,null,null,null,null,null,null,null,null,null,null,null,null,null,null,null,null,null,null,null,null,null,null,null,null,null,null,null,null,"扶養親族",null,null,null,null,null,"（本人を除く。）",null,null,null,null,null,null,null,null,null,null,null,"である",null,null,null,null,null,null,null,null,null,null,null,null,null,null," 配偶者の有無等",null,null,null,null,null,null,null,null,null,null,null,null,null,null,null,null,null,null,null,null,null,null,null,null,null,null,null,"（配偶者を除く。）",null,null,null,null,null,null,null,null,null,null,null,null,null,null,null,null,null,null,null,null,null,null,null,null,null,null,null,null,null,null,null,null,null,null,null,null,null,null,null,"扶養親族",null,null,null,null,null,"（本人を除く。）",null,null,null,null,null,null,null,null,null,null,null,"である"]
[null,null,null,null,null,null,null,null,null,null,null,null,null,null,null,null,null,null,null,null," 控 除 の 額",null,null,null,null,null,null,null,null,null,null,null,null,null,null,null,null,null,null,null,null,null,null,null,null,null,null,null,null,null,null,null,null,null,null,null,null,null,null,null,null,null,null,null,null,null,null,null,null,null,null,null,null,null,null,null,null,null,null,null,null,null,null,null,null,null,null,null,null,null,null,null,null,null,null,null,null,null,null,null,null,null,null,null,null,null,null,null,null,null,null,null,null,null,null,null,null,null,null,null,null," 控 除 の 額"]
[null,null,null,null,null,null,null,null,null,null,null,null,null,null,null,null,"老人",null,null,null,null,null,null,null,null,null,null,null,null,null,null,null,null,null,"特　定",null,null,null,null,null,null,null,null,"老   人",null,null,null,null,null,null,null,null,null,null,null,null,"その他",null,null,null,null,null,null,null,null,"特   親",null,null,null,null,null,null,null,null,"の数",null,null,null,null,null,"特　 別",null,null,null,null,null,null,null,"その他",null,null,null,"親族の数",null,null,null,null,null,null,null,null,null,null,null,null,null,null,null,null,null,null,null,null,null,null,null,null,"老人",null,null,null,null,null,null,null,null,null,null,null,null,null,null,null,null,null,"特　定",null,null,null,null,null,null,null,null,"老   人",null,null,null,null,null,null,null,null,null,null,null,null,"その他",null,null,null,null,null,null,null,null,"特   親",null,null,null,null,null,null,null,null,"の数",null,null,null,null,null,"特　 別",null,null,null,null,null,null,null,"その他",null,null,null,"親族の数"]
[]
[null,null,null,null,null,null,"有",null,null,null,null,"従有",null,null,null,null,null,null,null,null,"                  円",null,null,null,null,null,null,null,null,null,null,null,null,null,"   人",null,null,null,null,"従人",null,null,null," 内",null,null,null,"   人",null,null,null,null,"従人",null,null,null,"  人",null,null,null,null,"従人",null,null,null,"  人",null,null,null,null,"従人",null,null,null,"人",null,null,null,null,null,"　内",null,null,null,"　　人",null,null,null,"　　人",null,null,null,"人",null,null,null,null,null,null,null,null,null,null,null,null,null,null,"有",null,null,null,null,"従有",null,null,null,null,null,null,null,null,"                  円",null,null,null,null,null,null,null,null,null,null,null,null,null,"   人",null,null,null,null,"従人",null,null,null," 内",null,null,null,"   人",null,null,null,null,"従人",null,null,null,"  人",null,null,null,null,"従人",null,null,null,"  人",null,null,null,null,"従人",null,null,null,"人",null,null,null,null,null,"　内",null,null,null,"　　人",null,null,null,"　　人",null,null,null,"人"]
[]
[null,null,null,null,null,null,{"$f":"IF($G$39=\"\",\"\",$G$39)","v":"　"},null,null,null,null,{"$f":"IF($L$39=\"\",\"\",$L$39)","v":"　"},null,null,null,null,{"$f":"IF($Q$39=\"\",\"\",$Q$39)","v":"　"},null,null,null,{"$f":"IF($U$39=\"\",\"\",$U$39)","v":""},null,null,null,null,null,null,null,null,null,null,null,null,null,{"$f":"IF($AI$39=\"\",\"\",$AI$39)","v":""},null,null,null,null,{"$f":"IF($AN$39=\"\",\"\",$AN$39)","v":""},null,null,null,{"$f":"IF($AR$39=\"\",\"\",$AR$39)","v":""},null,null,null,{"$f":"IF($AV$39=\"\",\"\",$AV$39)","v":""},null,null,null,null,{"$f":"IF($BA$39=\"\",\"\",$BA$39)","v":""},null,null,null,{"$f":"IF($BE$39=\"\",\"\",$BE$39)","v":""},null,null,null,null,{"$f":"IF($BJ$39=\"\",\"\",$BJ$39)","v":""},null,null,null,{"$f":"IF($BN$39=\"\",\"\",$BN$39)","v":""},null,null,null,null,{"$f":"IF($BS$39=\"\",\"\",$BS$39)","v":""},null,null,null,{"$f":"IF($BW$39=\"\",\"\",$BW$39)","v":""},null,null,null,null,null,{"$f":"IF($CC$39=\"\",\"\",$CC$39)","v":""},null,null,null,{"$f":"IF($CG$39=\"\",\"\",$CG$39)","v":""},null,null,null,{"$f":"IF($CK$39=\"\",\"\",$CK$39)","v":""},null,null,null,{"$f":"IF($CO$39=\"\",\"\",$CO$39)","v":""},null,null,null,null,null,null,null,null,null,null,null,null,null,null,{"$f":"IF($G$39=\"\",\"\",$G$39)","v":"　"},null,null,null,null,{"$f":"IF($L$39=\"\",\"\",$L$39)","v":"　"},null,null,null,null,{"$f":"IF($Q$39=\"\",\"\",$Q$39)","v":"　"},null,null,null,{"$f":"IF($U$39=\"\",\"\",$U$39)","v":""},null,null,null,null,null,null,null,null,null,null,null,null,null,{"$f":"IF($AI$39=\"\",\"\",$AI$39)","v":""},null,null,null,null,{"$f":"IF($AN$39=\"\",\"\",$AN$39)","v":""},null,null,null,{"$f":"IF($AR$39=\"\",\"\",$AR$39)","v":""},null,null,null,{"$f":"IF($AV$39=\"\",\"\",$AV$39)","v":""},null,null,null,null,{"$f":"IF($BA$39=\"\",\"\",$BA$39)","v":""},null,null,null,{"$f":"IF($BE$39=\"\",\"\",$BE$39)","v":""},null,null,null,null,{"$f":"IF($BJ$39=\"\",\"\",$BJ$39)","v":""},null,null,null,{"$f":"IF($BN$39=\"\",\"\",$BN$39)","v":""},null,null,null,null,{"$f":"IF($BS$39=\"\",\"\",$BS$39)","v":""},null,null,null,{"$f":"IF($BW$39=\"\",\"\",$BW$39)","v":""},null,null,null,null,null,{"$f":"IF($CC$39=\"\",\"\",$CC$39)","v":""},null,null,null,{"$f":"IF($CG$39=\"\",\"\",$CG$39)","v":""},null,null,null,{"$f":"IF($CK$39=\"\",\"\",$CK$39)","v":""},null,null,null,{"$f":"IF($CO$39=\"\",\"\",$CO$39)","v":""}]
[null,null,null,null,null,null,"特定親族特別控除の額",null,null,null,null,null,null,null,null,null,null,null,null,null,null,null,null,null,null,null,"社会保険料等の金額",null,null,null,null,null,null,null,null,null,null,null,null,null,null,null,null,null,null,null,null,"生命保険料の控除額",null,null,null,null,null,null,null,null,null,null,null,null,null,null,null,null,"地震保険料の控除額",null,null,null,null,null,null,null,null,null,null,null,null,null,null,null,null,"住宅借入金等特別控除の額",null,null,null,null,null,null,null,null,null,null,null,null,null,null,null,null,null,null,null,null,null,null,null,null,null,"特定親族特別控除の額",null,null,null,null,null,null,null,null,null,null,null,null,null,null,null,null,null,null,null,"社会保険料等の金額",null,null,null,null,null,null,null,null,null,null,null,null,null,null,null,null,null,null,null,null,"生命保険料の控除額",null,null,null,null,null,null,null,null,null,null,null,null,null,null,null,null,"地震保険料の控除額",null,null,null,null,null,null,null,null,null,null,null,null,null,null,null,null,"住宅借入金等特別控除の額"]
[]
[null,null,null,null,null,null,"　　　　　　　　　　　　　　　　円",null,null,null,null,null,null,null,null,null,null,null,null,null,null,null,null,null,null,null,"　内",null,null,null,{"$f":"IF($AE$42=\"\",\"\",$AE$42)","v":""},null,null,null,null,null,null,null,null,null,null,null,null,null,null,"円",null,"　　　　　　　　　　　　　　　　円",null,null,null,null,null,null,null,null,null,null,null,null,null,null,null,null,"　　　　　　　　　　　　　　　　円",null,null,null,null,null,null,null,null,null,null,null,null,null,null,null,null,"円",null,null,null,null,null,null,null,null,null,null,null,null,null,null,null,null,null,null,null,null,null,null,null,null,null,"　　　　　　　　　　　　　　　　円",null,null,null,null,null,null,null,null,null,null,null,null,null,null,null,null,null,null,null,"　内",null,null,null,{"$f":"IF($AE$42=\"\",\"\",$AE$42)","v":""},null,null,null,null,null,null,null,null,null,null,null,null,null,null,"円",null,"　　　　　　　　　　　　　　　　円",null,null,null,null,null,null,null,null,null,null,null,null,null,null,null,null,"　　　　　　　　　　　　　　　　円",null,null,null,null,null,null,null,null,null,null,null,null,null,null,null,null,"円"]
[]
[null,null,null,null,null,null,{"$f":"IF($G$44=\"\",\"\",$G$44)","v":""},null,null,null,null,null,null,null,null,null,null,null,null,null,null,null,null,null,null,null,{"$f":"IF($AA$44=\"\",\"\",$AA$44)","v":""},null,null,null,null,null,null,null,null,null,null,null,null,null,null,null,null,null,null,null,null,{"$f":"IF($AV$44=\"\",\"\",$AV$44)","v":""},null,null,null,null,null,null,null,null,null,null,null,null,null,null,null,null,{"$f":"IF($BM$44=\"\",\"\",$BM$44)","v":""},null,null,null,null,null,null,null,null,null,null,null,null,null,null,null,null,{"$f":"IF($CD$44=\"\",\"\",$CD$44)","v":""},null,null,null,null,null,null,null,null,null,null,null,null,null,null,null,null,null,null,null,null,null,null,null,null,null,{"$f":"IF($G$44=\"\",\"\",$G$44)","v":""},null,null,null,null,null,null,null,null,null,null,null,null,null,null,null,null,null,null,null,{"$f":"IF($AA$44=\"\",\"\",$AA$44)","v":""},null,null,null,null,null,null,null,null,null,null,null,null,null,null,null,null,null,null,null,null,{"$f":"IF($AV$44=\"\",\"\",$AV$44)","v":""},null,null,null,null,null,null,null,null,null,null,null,null,null,null,null,null,{"$f":"IF($BM$44=\"\",\"\",$BM$44)","v":""},null,null,null,null,null,null,null,null,null,null,null,null,null,null,null,null,{"$f":"IF($CD$44=\"\",\"\",$CD$44)","v":""}]
[]
[]
[null,null,null,null,null,null,"(摘要)",null,null,null,null,null,null,null,null,null,null,null,null,null,null,null,null,null,null,null,null,null,null,null,null,null,null,null,null,null,null,null,null,null,null,null,null,null,null,null,null,null,null,null,null,null,null,null,null,null,null,null,null,null,null,null,null,null,null,null,null,null,null,null,null,null,null,null,null,null,null,null,null,null,null,null,null,null,null,null,null,null,null,null,null,null,null,null,null,null,null,null,null,null,null,null,null,null,null,null,null,"(摘要)"]
[]
[null,null,null,null,null,null,{"$f":"IF($G$49=\"\",\"\",$G$49)","v":""},null,null,null,null,null,null,null,null,null,null,null,null,null,null,null,null,null,null,null,null,null,null,null,null,null,null,null,null,null,null,null,null,null,null,null,null,null,null,null,null,null,null,null,null,null,null,null,null,null,null,null,null,null,null,null,null,null,null,null,null,null,null,null,null,null,null,null,null,null,null,null,null,null,null,null,null,null,null,null,null,null,null,null,null,null,null,null,null,null,null,null,null,null,null,null,null,null,null,null,null,{"$f":"IF($G$49=\"\",\"\",$G$49)","v":""}]
[]
[]
[]
[]
[]
[]
[null,null,null,null,null,null,"生命保険料の金額の内訳",null,null,null,null,null,"新生命\n保険料\nの金額",null,null,null,null,null,null,"　　 　 　　円",null,null,null,null,null,null,null,null,null,"旧生命\n保険料\nの金額",null,null,null,null,null,null,"　 　 　　円",null,null,null,null,null,null,null,null,null,"介護医療\n保険料\nの金額",null,null,null,null,null,null," 　　　    　円",null,null,null,null,null,null,null,null,null,"新個人年金\n保険料\nの金額",null,null,null,null,null,null,"             円",null,null,null,null,null,null,null,null,null,"旧個人年金\n保険料\nの金額",null,null,null,null,null,null,"　              円",null,null,null,null,null,null,null,null,null,null,null,null,null,null,null,null,null,null,null,"生命保険料の金額の内訳",null,null,null,null,null,"新生命\n保険料\nの金額",null,null,null,null,null,null,"　　 　 　　円",null,null,null,null,null,null,null,null,null,"旧生命\n保険料\nの金額",null,null,null,null,null,null,"　 　 　　円",null,null,null,null,null,null,null,null,null,"介護医療\n保険料\nの金額",null,null,null,null,null,null," 　　　    　円",null,null,null,null,null,null,null,null,null,"新個人年金\n保険料\nの金額",null,null,null,null,null,null,"             円",null,null,null,null,null,null,null,null,null,"旧個人年金\n保険料\nの金額",null,null,null,null,null,null,"　              円"]
[null,null,null,null,null,null,null,null,null,null,null,null,null,null,null,null,null,null,null,{"$f":"IF($T$57=\"\",\"\",$T$57)","v":""},null,null,null,null,null,null,null,null,null,null,null,null,null,null,null,null,{"$f":"IF($AK$57=\"\",\"\",$AK$57)","v":""},null,null,null,null,null,null,null,null,null,null,null,null,null,null,null,null,{"$f":"IF($BB$57=\"\",\"\",$BB$57)","v":""},null,null,null,null,null,null,null,null,null,null,null,null,null,null,null,null,{"$f":"IF($BS$57=\"\",\"\",$BS$57)","v":""},null,null,null,null,null,null,null,null,null,null,null,null,null,null,null,null,{"$f":"IF($CJ$57=\"\",\"\",$CJ$57)","v":""},null,null,null,null,null,null,null,null,null,null,null,null,null,null,null,null,null,null,null,null,null,null,null,null,null,null,null,null,null,null,null,null,{"$f":"IF($T$57=\"\",\"\",$T$57)","v":""},null,null,null,null,null,null,null,null,null,null,null,null,null,null,null,null,{"$f":"IF($AK$57=\"\",\"\",$AK$57)","v":""},null,null,null,null,null,null,null,null,null,null,null,null,null,null,null,null,{"$f":"IF($BB$57=\"\",\"\",$BB$57)","v":""},null,null,null,null,null,null,null,null,null,null,null,null,null,null,null,null,{"$f":"IF($BS$57=\"\",\"\",$BS$57)","v":""},null,null,null,null,null,null,null,null,null,null,null,null,null,null,null,null,{"$f":"IF($CJ$57=\"\",\"\",$CJ$57)","v":""}]
[]
[]
[null,null,null,null,null,null,"住宅借入\n金等特別\n控除の\n額の内訳",null,null,null,null,null,"住宅借入金\n等特別控除\n適用数",null,null,null,null,null,null,{"$f":"IF($T$60=\"\",\"\",$T$60)","v":""},null,null,null,null,null,null,null,null,null,"居住開始\n年月日\n（1回目）",null,null,null,null,null,null,"年",null,null,null,null,null,null,"月",null,null,null,null,"日",null,null,null,null,"住宅借入金等\n特別控除区分\n（1回目）",null,null,null,null,null,null,null,null,null,{"$f":"IF($BL$60=\"\",\"\",$BL$60)","v":""},null,null,null,null,null,null,"住宅借入金等\n年末残高\n（1回目）",null,null,null,null,null,null,null,null,null,{"$f":"IF($CC$60=\"\",\"\",$CC$60)","v":""},null,null,null,null,null,null,null,null,null,null,null,null,null,null,null,"円",null,null,null,null,null,null,null,null,null,null,"住宅借入\n金等特別\n控除の\n額の内訳",null,null,null,null,null,"住宅借入金\n等特別控除\n適用数",null,null,null,null,null,null,{"$f":"IF($T$60=\"\",\"\",$T$60)","v":""},null,null,null,null,null,null,null,null,null,"居住開始\n年月日\n（1回目）",null,null,null,null,null,null,"年",null,null,null,null,null,null,"月",null,null,null,null,"日",null,null,null,null,"住宅借入金等\n特別控除区分\n（1回目）",null,null,null,null,null,null,null,null,null,{"$f":"IF($BL$60=\"\",\"\",$BL$60)","v":""},null,null,null,null,null,null,"住宅借入金等\n年末残高\n（1回目）",null,null,null,null,null,null,null,null,null,{"$f":"IF($CC$60=\"\",\"\",$CC$60)","v":""},null,null,null,null,null,null,null,null,null,null,null,null,null,null,null,"円"]
[null,null,null,null,null,null,null,null,null,null,null,null,null,null,null,null,null,null,null,null,null,null,null,null,null,null,null,null,null,null,null,null,null,null,null,null,{"$f":"IF($AK$61=\"\",\"\",$AK$61)","v":""},null,null,null,null,null,null,{"$f":"IF($AR$61=\"\",\"\",$AR$61)","v":""},null,null,null,null,{"$f":"IF($AW$61=\"\",\"\",$AW$61)","v":""},null,null,null,null,null,null,null,null,null,null,null,null,null,null,null,null,null,null,null,null,null,null,null,null,null,null,null,null,null,null,null,null,null,null,null,null,null,null,null,null,null,null,null,null,null,null,null,null,null,null,null,null,null,null,null,null,null,null,null,null,null,null,null,null,null,null,null,null,null,null,null,null,null,null,null,null,null,null,null,null,null,null,null,null,null,null,null,null,{"$f":"IF($AK$61=\"\",\"\",$AK$61)","v":""},null,null,null,null,null,null,{"$f":"IF($AR$61=\"\",\"\",$AR$61)","v":""},null,null,null,null,{"$f":"IF($AW$61=\"\",\"\",$AW$61)","v":""}]
[]
[]
[null,null,null,null,null,null,null,null,null,null,null,null,"住宅借入金\n等特別控除\n可能額",null,null,null,null,null,null,"円",null,null,null,null,null,null,null,null,null,"居住開始\n年月日\n（2回目）",null,null,null,null,null,null,"年",null,null,null,null,null,null,"月",null,null,null,null,"日",null,null,null,null,"住宅借入金等\n特別控除区分\n（2回目）",null,null,null,null,null,null,null,null,null,{"$f":"IF($BL$64=\"\",\"\",$BL$64)","v":""},null,null,null,null,null,null,"住宅借入金等\n年末残高\n（2回目）",null,null,null,null,null,null,null,null,null,{"$f":"IF($CC$64=\"\",\"\",$CC$64)","v":""},null,null,null,null,null,null,null,null,null,null,null,null,null,null,null,"円",null,null,null,null,null,null,null,null,null,null,null,null,null,null,null,null,"住宅借入金\n等特別控除\n可能額",null,null,null,null,null,null,"円",null,null,null,null,null,null,null,null,null,"居住開始\n年月日\n（2回目）",null,null,null,null,null,null,"年",null,null,null,null,null,null,"月",null,null,null,null,"日",null,null,null,null,"住宅借入金等\n特別控除区分\n（2回目）",null,null,null,null,null,null,null,null,null,{"$f":"IF($BL$64=\"\",\"\",$BL$64)","v":""},null,null,null,null,null,null,"住宅借入金等\n年末残高\n（2回目）",null,null,null,null,null,null,null,null,null,{"$f":"IF($CC$64=\"\",\"\",$CC$64)","v":""},null,null,null,null,null,null,null,null,null,null,null,null,null,null,null,"円"]
[null,null,null,null,null,null,null,null,null,null,null,null,null,null,null,null,null,null,null,{"$f":"IF($T$65=\"\",\"\",$T$65)","v":""},null,null,null,null,null,null,null,null,null,null,null,null,null,null,null,null,{"$f":"IF($AK$65=\"\",\"\",$AK$65)","v":""},null,null,null,null,null,null,{"$f":"IF($AR$65=\"\",\"\",$AR$65)","v":""},null,null,null,null,{"$f":"IF($AW$65=\"\",\"\",$AW$65)","v":""},null,null,null,null,null,null,null,null,null,null,null,null,null,null,null,null,null,null,null,null,null,null,null,null,null,null,null,null,null,null,null,null,null,null,null,null,null,null,null,null,null,null,null,null,null,null,null,null,null,null,null,null,null,null,null,null,null,null,null,null,null,null,null,null,null,null,null,null,null,null,null,{"$f":"IF($T$65=\"\",\"\",$T$65)","v":""},null,null,null,null,null,null,null,null,null,null,null,null,null,null,null,null,{"$f":"IF($AK$65=\"\",\"\",$AK$65)","v":""},null,null,null,null,null,null,{"$f":"IF($AR$65=\"\",\"\",$AR$65)","v":""},null,null,null,null,{"$f":"IF($AW$65=\"\",\"\",$AW$65)","v":""}]
[null,null,"五〇〇万円を超える者等に使用してください。",null,"支払金額が法人役員一五〇万円・一般の受給者"]
[]
[null,null,null,null,null,null,"（源泉・特別）\n控除対象\n配偶者",null,null,null,null,"(フリガナ)",null,null,null,null,null,null,null,null,null,null,{"$f":"IF($W$68=\"\",\"\",$W$68)","v":""},null,null,null,null,null,null,null,null,null,null,null,null,null,null,null,null,null,"区分",null,{"$f":"IF($AQ$71=\"\",\"\",$AQ$71)","v":"　"},null,null,null,"配偶者の\n合計所得",null,null,null,null,null,null,"　　　　   円",null,null,null,null,null,null,null,null,null,"国民年金保険料等の金額",null,null,null,null,null,null,null,"円",null,null,null,null,null,null,null,null,"旧長期損害\n保険料の金額",null,null,null,null,null,null,null,null,"円",null,null,null,null,null,null,null,null,null,null,null,null,null,null,null,null,null,"（源泉・特別）\n控除対象\n配偶者",null,null,null,null,"(フリガナ)",null,null,null,null,null,null,null,null,null,null,{"$f":"IF($W$68=\"\",\"\",$W$68)","v":""},null,null,null,null,null,null,null,null,null,null,null,null,null,null,null,null,null,"区分",null,{"$f":"IF($AQ$71=\"\",\"\",$AQ$71)","v":"　"},null,null,null,"配偶者の\n合計所得",null,null,null,null,null,null,"　　　　   円",null,null,null,null,null,null,null,null,null,"国民年金保険料等の金額",null,null,null,null,null,null,null,"円",null,null,null,null,null,null,null,null,"旧長期損害\n保険料の金額",null,null,null,null,null,null,null,null,"円"]
[]
[null,null,null,null,null,null,null,null,null,null,null,null,null,null,null,null,null,null,null,null,null,null,null,null,null,null,null,null,null,null,null,null,null,null,null,null,null,null,null,null,null,null,null,null,null,null,null,null,null,null,null,null,null,null,null,null,null,null,null,null,null,null,null,null,null,null,null,null,null,null,null,{"$f":"IF($BT$70=\"\",\"\",$BT$70)","v":""},null,null,null,null,null,null,null,null,null,null,null,null,null,null,null,null,null,{"$f":"IF($CL$70=\"\",\"\",$CL$70)","v":""},null,null,null,null,null,null,null,null,null,null,null,null,null,null,null,null,null,null,null,null,null,null,null,null,null,null,null,null,null,null,null,null,null,null,null,null,null,null,null,null,null,null,null,null,null,null,null,null,null,null,null,null,null,null,null,null,null,null,null,null,null,null,null,null,null,null,null,null,null,null,null,null,null,null,null,null,null,null,null,null,null,null,{"$f":"IF($BT$70=\"\",\"\",$BT$70)","v":""},null,null,null,null,null,null,null,null,null,null,null,null,null,null,null,null,null,{"$f":"IF($CL$70=\"\",\"\",$CL$70)","v":""}]
[null,null,null,null,null,null,null,null,null,null,null,"氏名",null,null,null,null,null,null,null,null,null,null,{"$f":"IF($W$71=\"\",\"\",$W$71)","v":""},null,null,null,null,null,null,null,null,null,null,null,null,null,null,null,null,null,null,null,null,null,null,null,null,null,null,null,null,null,null,{"$f":"IF($BB$71=\"\",\"\",$BB$71)","v":""},null,null,null,null,null,null,null,null,null,null,null,null,null,null,null,null,null,null,null,null,null,null,null,null,null,null,null,null,null,null,null,null,null,null,null,null,null,null,null,null,null,null,null,null,null,null,null,null,null,null,null,null,null,null,null,null,null,null,"氏名",null,null,null,null,null,null,null,null,null,null,{"$f":"IF($W$71=\"\",\"\",$W$71)","v":""},null,null,null,null,null,null,null,null,null,null,null,null,null,null,null,null,null,null,null,null,null,null,null,null,null,null,null,null,null,null,{"$f":"IF($BB$71=\"\",\"\",$BB$71)","v":""}]
[null,null,null,null,null,null,null,null,null,null,null,null,null,null,null,null,null,null,null,null,null,null,null,null,null,null,null,null,null,null,null,null,null,null,null,null,null,null,null,null,null,null,null,null,null,null,null,null,null,null,null,null,null,null,null,null,null,null,null,null,null,null,null,"基礎控除の額",null,null,null,null,null,null,null,"円",null,null,null,null,null,null,null,null,"所得金額\n調整控除額",null,null,null,null,null,null,null,null,"円",null,null,null,null,null,null,null,null,null,null,null,null,null,null,null,null,null,null,null,null,null,null,null,null,null,null,null,null,null,null,null,null,null,null,null,null,null,null,null,null,null,null,null,null,null,null,null,null,null,null,null,null,null,null,null,null,null,null,null,null,null,null,null,null,null,null,null,null,null,null,null,null,null,null,"基礎控除の額",null,null,null,null,null,null,null,"円",null,null,null,null,null,null,null,null,"所得金額\n調整控除額",null,null,null,null,null,null,null,null,"円"]
[null,null,null,null,null,null,null,null,null,null,null,"個人番号",null,null,null,null,null,null,null,null,null,null,{"$f":"IF($W$73=\"\",\"\",$W$73)","v":""},null,{"$f":"IF($Y$73=\"\",\"\",$Y$73)","v":""},null,{"$f":"IF($AA$73=\"\",\"\",$AA$73)","v":""},null,{"$f":"IF($AC$73=\"\",\"\",$AC$73)","v":""},null,{"$f":"IF($AE$73=\"\",\"\",$AE$73)","v":""},null,{"$f":"IF($AG$73=\"\",\"\",$AG$73)","v":""},null,{"$f":"IF($AI$73=\"\",\"\",$AI$73)","v":""},null,{"$f":"IF($AK$73=\"\",\"\",$AK$73)","v":""},null,{"$f":"IF($AM$73=\"\",\"\",$AM$73)","v":""},null,{"$f":"IF($AO$73=\"\",\"\",$AO$73)","v":""},null,{"$f":"IF($AQ$73=\"\",\"\",$AQ$73)","v":""},null,{"$f":"IF($AS$73=\"\",\"\",$AS$73)","v":""},null,null,null,null,null,null,null,null,null,null,null,null,null,null,null,null,null,null,null,null,null,null,null,null,null,null,{"$f":"IF($BT$73=\"\",\"\",$BT$73)","v":""},null,null,null,null,null,null,null,null,null,null,null,null,null,null,null,null,null,{"$f":"IF($CL$73=\"\",\"\",$CL$73)","v":""},null,null,null,null,null,null,null,null,null,null,null,null,null,null,null,null,null,null,null,null,null,null,null,null,null,null,null,null,null,null,null,null,null,null,null,null,null,null,null,null,null,null,null,null,null,null,null,null,null,null,null,null,null,null,null,null,null,null,null,null,null,null,null,null,null,null,null,null,null,null,null,null,null,null,null,null,null,null,null,null,null,null,{"$f":"IF($BT$73=\"\",\"\",$BT$73)","v":""},null,null,null,null,null,null,null,null,null,null,null,null,null,null,null,null,null,{"$f":"IF($CL$73=\"\",\"\",$CL$73)","v":""}]
[]
[]
[null,null,null,null,null,null,"控除対象扶養親族等",null,null,1,null,"(フリガナ)",null,null,null,null,null,null,null,null,null,null,{"$f":"IF($W$76=\"\",\"\",$W$76)","v":""},null,null,null,null,null,null,null,null,null,null,null,null,null,null,null,null,null,"区分",null,null,null,null,null,"16歳未満の扶養親族",null,null,1,null,"(フリガナ)",null,null,null,null,null,null,null,null,null,null,{"$f":"IF($BK$76=\"\",\"\",$BK$76)","v":""},null,null,null,null,null,null,null,null,null,null,null,null,null,null,null,null,null,"区分",null,null,null,null,null,"（備考）",null,null,null,null,null,null,null,null,null,null,null,null,null,null,null,null,null,null,null,null,"控除対象扶養親族等",null,null,1,null,"(フリガナ)",null,null,null,null,null,null,null,null,null,null,{"$f":"IF($W$76=\"\",\"\",$W$76)","v":""},null,null,null,null,null,null,null,null,null,null,null,null,null,null,null,null,null,"区分",null,null,null,null,null,"16歳未満の扶養親族",null,null,1,null,"(フリガナ)",null,null,null,null,null,null,null,null,null,null,{"$f":"IF($BK$76=\"\",\"\",$BK$76)","v":""},null,null,null,null,null,null,null,null,null,null,null,null,null,null,null,null,null,"区分"]
[]
[null,null,null,null,null,null,null,null,null,null,null,"氏名",null,null,null,null,null,null,null,null,null,null,{"$f":"IF($W$78=\"\",\"\",$W$78)","v":""},null,null,null,null,null,null,null,null,null,null,null,null,null,null,null,null,null,null,null,{"$f":"IF($AQ$78=\"\",\"\",$AQ$78)","v":""},null,null,null,null,null,null,null,null,"氏名",null,null,null,null,null,null,null,null,null,null,{"$f":"IF($BK$78=\"\",\"\",$BK$78)","v":""},null,null,null,null,null,null,null,null,null,null,null,null,null,null,null,null,null,null,null,{"$f":"IF($CE$78=\"\",\"\",$CE$78)","v":"　"},null,null,null,{"$f":"IF($CI$79=\"\",\"\",$CI$79)","v":""},null,null,null,null,null,null,null,null,null,null,null,null,null,null,null,null,null,null,null,null,null,null,null,null,null,"氏名",null,null,null,null,null,null,null,null,null,null,{"$f":"IF($W$78=\"\",\"\",$W$78)","v":""},null,null,null,null,null,null,null,null,null,null,null,null,null,null,null,null,null,null,null,{"$f":"IF($AQ$78=\"\",\"\",$AQ$78)","v":""},null,null,null,null,null,null,null,null,"氏名",null,null,null,null,null,null,null,null,null,null,{"$f":"IF($BK$78=\"\",\"\",$BK$78)","v":""},null,null,null,null,null,null,null,null,null,null,null,null,null,null,null,null,null,null,null,{"$f":"IF($CE$78=\"\",\"\",$CE$78)","v":"　"}]
[null,null,null,null,null,null,null,null,null,null,null,"個人番号",null,null,null,null,null,null,null,null,null,null,{"$f":"IF($W$79=\"\",\"\",$W$79)","v":""},null,{"$f":"IF($Y$79=\"\",\"\",$Y$79)","v":""},null,{"$f":"IF($AA$79=\"\",\"\",$AA$79)","v":""},null,{"$f":"IF($AC$79=\"\",\"\",$AC$79)","v":""},null,{"$f":"IF($AE$79=\"\",\"\",$AE$79)","v":""},null,{"$f":"IF($AG$79=\"\",\"\",$AG$79)","v":""},null,{"$f":"IF($AI$79=\"\",\"\",$AI$79)","v":""},null,{"$f":"IF($AK$79=\"\",\"\",$AK$79)","v":""},null,{"$f":"IF($AM$79=\"\",\"\",$AM$79)","v":""},null,{"$f":"IF($AO$79=\"\",\"\",$AO$79)","v":""},null,{"$f":"IF($AQ$79=\"\",\"\",$AQ$79)","v":""},null,{"$f":"IF($AS$79=\"\",\"\",$AS$79)","v":""}]
[]
[]
[null,null,null,null,null,null,null,null,null,2,null,"(フリガナ)",null,null,null,null,null,null,null,null,null,null,{"$f":"IF($W$82=\"\",\"\",$W$82)","v":""},null,null,null,null,null,null,null,null,null,null,null,null,null,null,null,null,null,"区分",null,null,null,null,null,null,null,null,2,null,"(フリガナ)",null,null,null,null,null,null,null,null,null,null,{"$f":"IF($BK$82=\"\",\"\",$BK$82)","v":""},null,null,null,null,null,null,null,null,null,null,null,null,null,null,null,null,null,"区分",null,null,null,null,null,null,null,null,null,null,null,null,null,null,null,null,null,null,null,null,null,null,null,null,null,null,null,null,null,2,null,"(フリガナ)",null,null,null,null,null,null,null,null,null,null,{"$f":"IF($W$82=\"\",\"\",$W$82)","v":""},null,null,null,null,null,null,null,null,null,null,null,null,null,null,null,null,null,"区分",null,null,null,null,null,null,null,null,2,null,"(フリガナ)",null,null,null,null,null,null,null,null,null,null,{"$f":"IF($BK$82=\"\",\"\",$BK$82)","v":""},null,null,null,null,null,null,null,null,null,null,null,null,null,null,null,null,null,"区分"]
[]
[null,null,null,null,null,null,null,null,null,null,null,"氏名",null,null,null,null,null,null,null,null,null,null,{"$f":"IF($W$84=\"\",\"\",$W$84)","v":""},null,null,null,null,null,null,null,null,null,null,null,null,null,null,null,null,null,null,null,{"$f":"IF($AQ$84=\"\",\"\",$AQ$84)","v":""},null,null,null,null,null,null,null,null,"氏名",null,null,null,null,null,null,null,null,null,null,{"$f":"IF($BK$84=\"\",\"\",$BK$84)","v":""},null,null,null,null,null,null,null,null,null,null,null,null,null,null,null,null,null,null,null,{"$f":"IF($CE$84=\"\",\"\",$CE$84)","v":"　"},null,null,null,null,null,null,null,null,null,null,null,null,null,null,null,null,null,null,null,null,null,null,null,null,null,null,null,null,null,"氏名",null,null,null,null,null,null,null,null,null,null,{"$f":"IF($W$84=\"\",\"\",$W$84)","v":""},null,null,null,null,null,null,null,null,null,null,null,null,null,null,null,null,null,null,null,{"$f":"IF($AQ$84=\"\",\"\",$AQ$84)","v":""},null,null,null,null,null,null,null,null,"氏名",null,null,null,null,null,null,null,null,null,null,{"$f":"IF($BK$84=\"\",\"\",$BK$84)","v":""},null,null,null,null,null,null,null,null,null,null,null,null,null,null,null,null,null,null,null,{"$f":"IF($CE$84=\"\",\"\",$CE$84)","v":"　"}]
[null,null,null,null,null,null,null,null,null,null,null,"個人番号",null,null,null,null,null,null,null,null,null,null,{"$f":"IF($W$85=\"\",\"\",$W$85)","v":""},null,{"$f":"IF($Y$85=\"\",\"\",$Y$85)","v":""},null,{"$f":"IF($AA$85=\"\",\"\",$AA$85)","v":""},null,{"$f":"IF($AC$85=\"\",\"\",$AC$85)","v":""},null,{"$f":"IF($AE$85=\"\",\"\",$AE$85)","v":""},null,{"$f":"IF($AG$85=\"\",\"\",$AG$85)","v":""},null,{"$f":"IF($AI$85=\"\",\"\",$AI$85)","v":""},null,{"$f":"IF($AK$85=\"\",\"\",$AK$85)","v":""},null,{"$f":"IF($AM$85=\"\",\"\",$AM$85)","v":""},null,{"$f":"IF($AO$85=\"\",\"\",$AO$85)","v":""},null,{"$f":"IF($AQ$85=\"\",\"\",$AQ$85)","v":""},null,{"$f":"IF($AS$85=\"\",\"\",$AS$85)","v":""}]
[]
[]
[null,null,null,null,null,null,null,null,null,3,null,"(フリガナ)",null,null,null,null,null,null,null,null,null,null,{"$f":"IF($W$88=\"\",\"\",$W$88)","v":""},null,null,null,null,null,null,null,null,null,null,null,null,null,null,null,null,null,"区分",null,null,null,null,null,null,null,null,3,null,"(フリガナ)",null,null,null,null,null,null,null,null,null,null,{"$f":"IF($BK$88=\"\",\"\",$BK$88)","v":""},null,null,null,null,null,null,null,null,null,null,null,null,null,null,null,null,null,"区分",null,null,null,null,null,null,null,null,null,null,null,null,null,null,null,null,null,null,null,null,null,null,null,null,null,null,null,null,null,3,null,"(フリガナ)",null,null,null,null,null,null,null,null,null,null,{"$f":"IF($W$88=\"\",\"\",$W$88)","v":""},null,null,null,null,null,null,null,null,null,null,null,null,null,null,null,null,null,"区分",null,null,null,null,null,null,null,null,3,null,"(フリガナ)",null,null,null,null,null,null,null,null,null,null,{"$f":"IF($BK$88=\"\",\"\",$BK$88)","v":""},null,null,null,null,null,null,null,null,null,null,null,null,null,null,null,null,null,"区分"]
[]
[null,null,null,null,null,null,null,null,null,null,null,"氏名",null,null,null,null,null,null,null,null,null,null,{"$f":"IF($W$90=\"\",\"\",$W$90)","v":""},null,null,null,null,null,null,null,null,null,null,null,null,null,null,null,null,null,null,null,{"$f":"IF($AQ$90=\"\",\"\",$AQ$90)","v":""},null,null,null,null,null,null,null,null,"氏名",null,null,null,null,null,null,null,null,null,null,{"$f":"IF($BK$90=\"\",\"\",$BK$90)","v":""},null,null,null,null,null,null,null,null,null,null,null,null,null,null,null,null,null,null,null,{"$f":"IF($CE$90=\"\",\"\",$CE$90)","v":"　"},null,null,null,null,null,null,null,null,null,null,null,null,null,null,null,null,null,null,null,null,null,null,null,null,null,null,null,null,null,"氏名",null,null,null,null,null,null,null,null,null,null,{"$f":"IF($W$90=\"\",\"\",$W$90)","v":""},null,null,null,null,null,null,null,null,null,null,null,null,null,null,null,null,null,null,null,{"$f":"IF($AQ$90=\"\",\"\",$AQ$90)","v":""},null,null,null,null,null,null,null,null,"氏名",null,null,null,null,null,null,null,null,null,null,{"$f":"IF($BK$90=\"\",\"\",$BK$90)","v":""},null,null,null,null,null,null,null,null,null,null,null,null,null,null,null,null,null,null,null,{"$f":"IF($CE$90=\"\",\"\",$CE$90)","v":"　"}]
[null,null,null,null,null,null,null,null,null,null,null,"個人番号",null,null,null,null,null,null,null,null,null,null,{"$f":"IF($W$91=\"\",\"\",$W$91)","v":""},null,{"$f":"IF($Y$91=\"\",\"\",$Y$91)","v":""},null,{"$f":"IF($AA$91=\"\",\"\",$AA$91)","v":""},null,{"$f":"IF($AC$91=\"\",\"\",$AC$91)","v":""},null,{"$f":"IF($AE$91=\"\",\"\",$AE$91)","v":""},null,{"$f":"IF($AG$91=\"\",\"\",$AG$91)","v":""},null,{"$f":"IF($AI$91=\"\",\"\",$AI$91)","v":""},null,{"$f":"IF($AK$91=\"\",\"\",$AK$91)","v":""},null,{"$f":"IF($AM$91=\"\",\"\",$AM$91)","v":""},null,{"$f":"IF($AO$91=\"\",\"\",$AO$91)","v":""},null,{"$f":"IF($AQ$91=\"\",\"\",$AQ$91)","v":""},null,{"$f":"IF($AS$91=\"\",\"\",$AS$91)","v":""}]
[]
[]
[null,null,null,null,null,null,null,null,null,4,null,"(フリガナ)",null,null,null,null,null,null,null,null,null,null,{"$f":"IF($W$94=\"\",\"\",$W$94)","v":""},null,null,null,null,null,null,null,null,null,null,null,null,null,null,null,null,null,"区分",null,null,null,null,null,null,null,null,4,null,"(フリガナ)",null,null,null,null,null,null,null,null,null,null,{"$f":"IF($BK$94=\"\",\"\",$BK$94)","v":""},null,null,null,null,null,null,null,null,null,null,null,null,null,null,null,null,null,"区分",null,null,null,null,null,null,null,null,null,null,null,null,null,null,null,null,null,null,null,null,null,null,null,null,null,null,null,null,null,4,null,"(フリガナ)",null,null,null,null,null,null,null,null,null,null,{"$f":"IF($W$94=\"\",\"\",$W$94)","v":""},null,null,null,null,null,null,null,null,null,null,null,null,null,null,null,null,null,"区分",null,null,null,null,null,null,null,null,4,null,"(フリガナ)",null,null,null,null,null,null,null,null,null,null,{"$f":"IF($BK$94=\"\",\"\",$BK$94)","v":""},null,null,null,null,null,null,null,null,null,null,null,null,null,null,null,null,null,"区分"]
[]
[null,null,null,null,null,null,null,null,null,null,null,"氏名",null,null,null,null,null,null,null,null,null,null,{"$f":"IF($W$96=\"\",\"\",$W$96)","v":""},null,null,null,null,null,null,null,null,null,null,null,null,null,null,null,null,null,null,null,{"$f":"IF($AQ$96=\"\",\"\",$AQ$96)","v":""},null,null,null,null,null,null,null,null,"氏名",null,null,null,null,null,null,null,null,null,null,{"$f":"IF($BK$96=\"\",\"\",$BK$96)","v":""},null,null,null,null,null,null,null,null,null,null,null,null,null,null,null,null,null,null,null,{"$f":"IF($CE$96=\"\",\"\",$CE$96)","v":"　"},null,null,null,null,null,null,null,null,null,null,null,null,null,null,null,null,null,null,null,null,null,null,null,null,null,null,null,null,null,"氏名",null,null,null,null,null,null,null,null,null,null,{"$f":"IF($W$96=\"\",\"\",$W$96)","v":""},null,null,null,null,null,null,null,null,null,null,null,null,null,null,null,null,null,null,null,{"$f":"IF($AQ$96=\"\",\"\",$AQ$96)","v":""},null,null,null,null,null,null,null,null,"氏名",null,null,null,null,null,null,null,null,null,null,{"$f":"IF($BK$96=\"\",\"\",$BK$96)","v":""},null,null,null,null,null,null,null,null,null,null,null,null,null,null,null,null,null,null,null,{"$f":"IF($CE$96=\"\",\"\",$CE$96)","v":"　"}]
[null,null,null,null,null,null,null,null,null,null,null,"個人番号",null,null,null,null,null,null,null,null,null,null,{"$f":"IF($W$97=\"\",\"\",$W$97)","v":""},null,{"$f":"IF($Y$97=\"\",\"\",$Y$97)","v":""},null,{"$f":"IF($AA$97=\"\",\"\",$AA$97)","v":""},null,{"$f":"IF($AC$97=\"\",\"\",$AC$97)","v":""},null,{"$f":"IF($AE$97=\"\",\"\",$AE$97)","v":""},null,{"$f":"IF($AG$97=\"\",\"\",$AG$97)","v":""},null,{"$f":"IF($AI$97=\"\",\"\",$AI$97)","v":""},null,{"$f":"IF($AK$97=\"\",\"\",$AK$97)","v":""},null,{"$f":"IF($AM$97=\"\",\"\",$AM$97)","v":""},null,{"$f":"IF($AO$97=\"\",\"\",$AO$97)","v":""},null,{"$f":"IF($AQ$97=\"\",\"\",$AQ$97)","v":""},null,{"$f":"IF($AS$97=\"\",\"\",$AS$97)","v":""}]
[]
[]
[null,null,null,null,null,null,"未成年者",null,null,null,"外国人",null,null,null,"死亡退職",null,null,null,"災害者",null,null,null,"乙欄",null,null,null,"本人が障害者",null,null,null,null,null,null,null,"寡　婦",null,null,null,"ひとり親",null,null,null,"勤労学生",null,null,null,null,null,null,null,"中 途 就 ・ 退 職",null,null,null,null,null,null,null,null,null,null,null,null,null,null,null,null,"受 給 者 生 年 月 日",null,null,null,null,null,null,null,null,null,null,null,null,null,null,null,null,null,null,null,null,null,null,null,null,null,null,null,null,null,null,null,null,null,null,null,null,null,null,null,"未成年者",null,null,null,"外国人",null,null,null,"死亡退職",null,null,null,"災害者",null,null,null,"乙欄",null,null,null,"本人が障害者",null,null,null,null,null,null,null,"寡　婦",null,null,null,"ひとり親",null,null,null,"勤労学生",null,null,null,null,null,null,null,"中 途 就 ・ 退 職",null,null,null,null,null,null,null,null,null,null,null,null,null,null,null,null,"受 給 者 生 年 月 日"]
[null,null,"（税務署提出用）",null,null,null,null,null,null,null,null,null,null,null,null,null,null,null,null,null,null,null,null,null,null,null,null,null,null,null,null,null,null,null,null,null,null,null,null,null,null,null,null,null,null,null,null,null,null,null,null,null,null,null,null,null,null,null,null,null,null,null,null,null,null,null,null,null,null,null,null,null,null,null,null,null,null,null,null,null,null,null,null,null,null,null,null,null,null,null,null,null,null,null,null,null,null,null,null,null,null,null,"（受給者交付用）"]
[null,null,null,null,null,null,null,null,null,null,null,null,null,null,null,null,null,null,null,null,null,null,null,null,null,null,"特別",null,null,null,"その他",null,null,null,null,null,null,null,null,null,null,null,null,null,null,null,null,null,null,null,null,null,null,null,null,null,null,null,null,null,null,null,null,null,null,null,null,null,null,null,null,null,null,null,null,null,null,null,null,null,null,null,null,null,null,null,null,null,null,null,null,null,null,null,null,null,null,null,null,null,null,null,null,null,null,null,null,null,null,null,null,null,null,null,null,null,null,null,null,null,null,null,null,null,null,null,null,"特別",null,null,null,"その他"]
[null,null,null,null,null,null,null,null,null,null,null,null,null,null,null,null,null,null,null,null,null,null,null,null,null,null,null,null,null,null,null,null,null,null,null,null,null,null,null,null,null,null,null,null,null,null,null,null,null,null,"就職",null,null,"退職",null,null,"年",null,null,"月",null,null,null,"日",null,null,null,"元　号",null,null,null,null,null,null,null,null,null,null,null,null,null,null,null,"年",null,null,null,null,"月",null,null,null,null,"日",null,null,null,null,null,null,null,null,null,null,null,null,null,null,null,null,null,null,null,null,null,null,null,null,null,null,null,null,null,null,null,null,null,null,null,null,null,null,null,null,null,null,null,null,null,null,null,null,null,null,null,null,null,null,null,null,null,"就職",null,null,"退職",null,null,"年",null,null,"月",null,null,null,"日",null,null,null,"元　号",null,null,null,null,null,null,null,null,null,null,null,null,null,null,null,"年",null,null,null,null,"月",null,null,null,null,"日"]
[]
[]
[null,null,null,null,null,null,{"$f":"IF($G$106=\"\",\"\",$G$106)","v":"　"},null,null,null,{"$f":"IF($K$106=\"\",\"\",$K$106)","v":"　"},null,null,null,{"$f":"IF($O$106=\"\",\"\",$O$106)","v":"　"},null,null,null,{"$f":"IF($S$106=\"\",\"\",$S$106)","v":"　"},null,null,null,{"$f":"IF($W$106=\"\",\"\",$W$106)","v":"　"},null,null,null,{"$f":"IF($AA$106=\"\",\"\",$AA$106)","v":"　"},null,null,null,{"$f":"IF($AE$106=\"\",\"\",$AE$106)","v":"　"},null,null,null,{"$f":"IF($AI$106=\"\",\"\",$AI$106)","v":"　"},null,null,null,{"$f":"IF($AM$106=\"\",\"\",$AM$106)","v":"　"},null,null,null,{"$f":"IF($AQ$106=\"\",\"\",$AQ$106)","v":"　"},null,null,null,null,null,null,null,{"$f":"IF($AY$106=\"\",\"\",$AY$106)","v":"　"},null,null,{"$f":"IF($BB$106=\"\",\"\",$BB$106)","v":"　"},null,null,{"$f":"$BE$106","v":7},null,null,{"$f":"IF($BH$106=\"\",\"\",$BH$106)","v":""},null,null,null,{"$f":"IF($BL$106=\"\",\"\",$BL$106)","v":""},null,null,null,{"$f":"IF($BP$106=\"\",\"\",$BP$106)","v":"　　　"},null,null,null,null,null,null,null,null,null,null,null,null,null,null,null,{"$f":"IF($CF$106=\"\",\"\",$CF$106)","v":""},null,null,null,null,{"$f":"IF($CK$106=\"\",\"\",$CK$106)","v":""},null,null,null,null,{"$f":"IF($CP$106=\"\",\"\",$CP$106)","v":""},null,null,null,null,null,null,null,null,null,null,null,null,null,{"$f":"IF($G$106=\"\",\"\",$G$106)","v":"　"},null,null,null,{"$f":"IF($K$106=\"\",\"\",$K$106)","v":"　"},null,null,null,{"$f":"IF($O$106=\"\",\"\",$O$106)","v":"　"},null,null,null,{"$f":"IF($S$106=\"\",\"\",$S$106)","v":"　"},null,null,null,{"$f":"IF($W$106=\"\",\"\",$W$106)","v":"　"},null,null,null,{"$f":"IF($AA$106=\"\",\"\",$AA$106)","v":"　"},null,null,null,{"$f":"IF($AE$106=\"\",\"\",$AE$106)","v":"　"},null,null,null,{"$f":"IF($AI$106=\"\",\"\",$AI$106)","v":"　"},null,null,null,{"$f":"IF($AM$106=\"\",\"\",$AM$106)","v":"　"},null,null,null,{"$f":"IF($AQ$106=\"\",\"\",$AQ$106)","v":"　"},null,null,null,null,null,null,null,{"$f":"IF($AY$106=\"\",\"\",$AY$106)","v":"　"},null,null,{"$f":"IF($BB$106=\"\",\"\",$BB$106)","v":"　"},null,null,{"$f":"$BE$106","v":7},null,null,{"$f":"IF($BH$106=\"\",\"\",$BH$106)","v":""},null,null,null,{"$f":"IF($BL$106=\"\",\"\",$BL$106)","v":""},null,null,null,{"$f":"IF($BP$106=\"\",\"\",$BP$106)","v":"　　　"},null,null,null,null,null,null,null,null,null,null,null,null,null,null,null,{"$f":"IF($CF$106=\"\",\"\",$CF$106)","v":""},null,null,null,null,{"$f":"IF($CK$106=\"\",\"\",$CK$106)","v":""},null,null,null,null,{"$f":"IF($CP$106=\"\",\"\",$CP$106)","v":""}]
[null,null,null,null,null,null,null,null,null,null,"個人番号又は\n法人番号",null,null,null,null,null,null,null,null,null,{"$f":"IF($U$107=\"\",\"\",$U$107)","v":""},null,{"$f":"IF($W$107=\"\",\"\",$W$107)","v":""},null,{"$f":"IF($Y$107=\"\",\"\",$Y$107)","v":""},null,{"$f":"IF($AA$107=\"\",\"\",$AA$107)","v":""},null,{"$f":"IF($AC$107=\"\",\"\",$AC$107)","v":""},null,{"$f":"IF($AE$107=\"\",\"\",$AE$107)","v":""},null,{"$f":"IF($AG$107=\"\",\"\",$AG$107)","v":""},null,{"$f":"IF($AI$107=\"\",\"\",$AI$107)","v":""},null,{"$f":"IF($AK$107=\"\",\"\",$AK$107)","v":""},null,{"$f":"IF($AM$107=\"\",\"\",$AM$107)","v":""},null,{"$f":"IF($AO$107=\"\",\"\",$AO$107)","v":""},null,{"$f":"IF($AQ$107=\"\",\"\",$AQ$107)","v":""},null,{"$f":"IF($AS$107=\"\",\"\",$AS$107)","v":""},null,"（右詰で記載してください。）"]
[]
[null,null,null,null,null,null,null,"支払者",null,null,null,null,null,null,null,null,null,null,null,null,null,null,null,null,null,null,null,null,null,null,null,null,null,null,null,null,null,null,null,null,null,null,null,null,null,null,null,null,null,null,null,null,null,null,null,null,null,null,null,null,null,null,null,null,null,null,null,null,null,null,null,null,null,null,null,null,null,null,null,null,null,null,null,null,null,null,null,null,null,null,null,null,null,null,null,null,null,null,null,null,null,null,null,null,null,null,null,null,"支払者"]
[null,null,null,null,null,null,null,null,null,null,null,null,null,null,null,null,null,null,null,null,{"$f":"IF($U$110=\"\",\"\",$U$110)","v":""},null,null,null,null,null,null,null,null,null,null,null,null,null,null,null,null,null,null,null,null,null,null,null,null,null,null,null,null,null,null,null,null,null,null,null,null,null,null,null,null,null,null,null,null,null,null,null,null,null,null,null,null,null,null,null,null,null,null,null,null,null,null,null,null,null,null,null,null,null,null,null,null,null,null,null,null,null,null,null,null,null,null,null,null,null,null,null,null,null,null,null,null,null,null,null,null,null,null,null,null,{"$f":"IF($U$110=\"\",\"\",$U$110)","v":""}]
[null,null,null,null,null,null,null,null,null,null,"住所(居所)",null,null,null,null,null,null,null,null,null,null,null,null,null,null,null,null,null,null,null,null,null,null,null,null,null,null,null,null,null,null,null,null,null,null,null,null,null,null,null,null,null,null,null,null,null,null,null,null,null,null,null,null,null,null,null,null,null,null,null,null,null,null,null,null,null,null,null,null,null,null,null,null,null,null,null,null,null,null,null,null,null,null,null,null,null,null,null,null,null,null,null,null,null,null,null,null,null,null,null,null,"住所(居所)"]
[]
[null,null,null,null,null,null,null,null,null,null,"又は所在地",null,null,null,null,null,null,null,null,null,null,null,null,null,null,null,null,null,null,null,null,null,null,null,null,null,null,null,null,null,null,null,null,null,null,null,null,null,null,null,null,null,null,null,null,null,null,null,null,null,null,null,null,null,null,null,null,null,null,null,null,null,null,null,null,null,null,null,null,null,null,null,null,null,null,null,null,null,null,null,null,null,null,null,null,null,null,null,null,null,null,null,null,null,null,null,null,null,null,null,null,"又は所在地"]
[]
[null,null,null,null,null,null,null,null,null,null,"氏名又は名称",null,null,null,null,null,null,null,null,null,{"$f":"IF($U$116=\"\",\"\",$U$116)","v":""},null,null,null,null,null,null,null,null,null,null,null,null,null,null,null,null,null,null,null,null,null,null,null,null,null,null,null,null,null,null,null,null,null,null,null,null,null,null,null,null,null,null,null,null,null,null,"（電話）",null,null,null,null,null,null,{"$f":"IF($BW$116=\"\",\"\",$BW$116)","v":""},null,null,null,null,null,null,null,null,null,null,null,null,null,null,null,null,null,null,null,null,null,null,null,null,null,null,null,null,null,null,null,null,null,null,null,null,"氏名又は名称",null,null,null,null,null,null,null,null,null,{"$f":"IF($U$116=\"\",\"\",$U$116)","v":""},null,null,null,null,null,null,null,null,null,null,null,null,null,null,null,null,null,null,null,null,null,null,null,null,null,null,null,null,null,null,null,null,null,null,null,null,null,null,null,null,null,null,null,null,null,null,"（電話）",null,null,null,null,null,null,{"$f":"IF($BW$116=\"\",\"\",$BW$116)","v":""}]
[]
[]
[null,null,null,null,null,null,"整理欄",null,null,null,null,null,null,null,null,null,null,null,null,null,null,null,null,null,null,null,null,null,null,null,null,null,null,null,null,null,null,null,null,null,null,null,null,null,null,null,null,null,null,null,null,null,null,null,null,null,null,null,null,null,null,null,null,null,null,null,null,null,null,null,null,null,null,null,null,null,null,null,null,null,null,null,null,null,null,null,null,null,null,null,null,null,375]